Body Name,Body Unit,Service Label,Service Code,Organisation Unit,Expenditure Category ,Calc Payment Date,Transaction Number,Net Payment ,Supplier Name,Supplier ID
North West Leicestershire District Council,31UH ,Housing Repairs,HRAHRM,HRA Housing Repairs & Maintenance,Energy Survey,03/04/2012,1233745,"1,292.00",Energico,A039091,,"1,550.40",258.40
North West Leicestershire District Council,31UH ,Housing,HRAHM,HRA Housing Management,Building Advice - Construction Safety Advice,03/04/2012,1233741,"1,200.00",Cope Safety Management Limited,A036053,,"1,440.00",240.00
North West Leicestershire District Council,31UH ,Planning & Development,ECP,Environment Community Planning,Training,03/04/2012,1233768,"1,372.92",Hinckley & Bosworth Borough Council,A000770,,"1,372.92",0.00
North West Leicestershire District Council,31UH ,Legal & Democratic,LDELC,Electoral & Land Charges,Mail services,03/04/2012,1233766,"3,819.95",Royal Mail Group Plc,A001418,,"3,819.95",0.00
North West Leicestershire District Council,31UH ,Housing,HRAHM,HRA Housing Management,Grants,03/04/2012,1233764,"70,000.00",East Midlands Housing Assocn,A000530,,"70,000.00",0.00
North West Leicestershire District Council,31UH ,Finance,FINPLA,Financial Planning,Training,03/04/2012,1233752,"19,487.02",Hinckley & Bosworth Borough Council,A000770,,"19,487.02",0.00
North West Leicestershire District Council,31UH ,Housing Repairs,HRAHRM,HRA Housing Repairs & Maintenance,Building Services,03/04/2012,1233751,"1,871.64",J Tomlinson Ltd,A033342,,"2,245.97",374.33
North West Leicestershire District Council,31UH ,Housing Repairs,HRAHRM,HRA Housing Repairs & Maintenance,Fuel servicing (Hsg Maintenance),03/04/2012,1233750,"1,631.76",Elite Sweep Service,A035675,,"1,958.11",326.35
North West Leicestershire District Council,31UH ,Corporate Director,HR,Human Resources,Leasing - Vehicles,03/04/2012,1233795,"9,214.56",Arnold Clark Vehicle Management,A035549,,"10,267.20","1,052.64"
North West Leicestershire District Council,31UH ,Housing Repairs,HRAHRM,HRA Housing Repairs & Maintenance,Gas & Electricity - Gas installation ,03/04/2012,1233800,693.33,British Gas Trading Limited,A026237,,832.00,138.67
North West Leicestershire District Council,31UH ,Leisure & Culture,CULTYP,Cultural Services Children & YoungPeople,Grants,03/04/2012,1233431,"1,000.00",Mantle Community Arts Limited,A001039,,"1,000.00",0.00
North West Leicestershire District Council,31UH ,Environmental Health,EEHL,Environmental Health & Licensing,Animals - Boarding Kennels,03/04/2012,1233370,"1,317.85",College Garth Boarding Kennels,A000385,,"1,601.42",283.57
North West Leicestershire District Council,31UH ,Finance,FINPLA,Financial Planning,Leasing - Vehicles and Equipment,11/04/2012,1233879,"4,900.00",SG Equipment Finance Limited,A030097,,"5,880.00",980.00
North West Leicestershire District Council,31UH ,Finance,EXCH,Exchequer Services,Recruitment - Agency Broker,11/04/2012,1233883,"11,333.80",Comensura Limited,A036958,,"13,600.54","2,266.74"
North West Leicestershire District Council,31UH ,Finance,FINPLA,Financial Planning,Leasing - Vehicles and Equipment,11/04/2012,1233880,"2,200.00",SG Equipment Finance Limited,A030097,,"2,640.00",440.00
North West Leicestershire District Council,31UH ,Finance,FINPLA,Financial Planning,Leasing - Vehicles and Equipment,11/04/2012,1233881,608.00,Capital Bank Leasing Ltd,A020440,,729.60,121.60
North West Leicestershire District Council,31UH ,Housing,HRAPBS,HRA Performance & Business Support,Tenants Contents Insurance,11/04/2012,1233876,"8,455.67",Jardine Lloyd Thompson,A037657,,"8,455.67",0.00
North West Leicestershire District Council,31UH ,Finance,FINPLA,Financial Planning,Leasing - Vehicles and Equipment,11/04/2012,1233878,"9,300.00",SG Equipment Finance Limited,A030097,,"11,160.00","1,860.00"
North West Leicestershire District Council,31UH ,Finance,FINPLA,Financial Planning,Leasing - Vehicles and Equipment,11/04/2012,1233895,576.00,Asset Advantage Limited,A034516,,691.20,115.20
North West Leicestershire District Council,31UH ,Neighbourhoods & Communities,NACN,N & C Neighbourhoods,Grants,11/04/2012,1233927,"3,500.00",Mantle Community Arts Limited,A001039,,"3,500.00",0.00
North West Leicestershire District Council,31UH ,Finance,FINPLA,Financial Planning,Insurance policies,11/04/2012,1233928,"3,765.00",Zurich Insurance Company,A001836,,"3,765.00",0.00
North West Leicestershire District Council,31UH ,Finance,FINPLA,Financial Planning,Insurance,11/04/2012,1233929,"3,050.00",Zurich Insurance Company,A033807,,"3,660.00",610.00
North West Leicestershire District Council,31UH ,Leisure & Culture,CULTEV,Cultural Services Arts & Events,Entertainment - Orchestra Agency,11/04/2012,1233924,"2,888.20",Orchestras Live,A000537,,"3,465.84",577.64
North West Leicestershire District Council,31UH ,Neighbourhoods & Communities,NACN,N & C Neighbourhoods,IT - Software -Tourism Information System,11/04/2012,1233925,"1,650.00",New Vision Group Ltd,A035114,,"1,980.00",330.00
North West Leicestershire District Council,31UH ,Finance,EXCH,Exchequer Services,Debt Collection,18/04/2012,1234123,"1,228.64",Kings Armoured Security Services Ltd,A004468,,"1,474.38",245.74
North West Leicestershire District Council,31UH ,Property Services,PROPFM,Property Facilities Management,Energy - Electricity - Contract 1,18/04/2012,1234153,"3,825.56",Southern Electric,A030266,,"4,590.67",765.11
North West Leicestershire District Council,31UH ,Information Technology,ICT,ICT Services,IT - Telephone and computing,18/04/2012,1234154,"4,377.81",Virgin Media Business,A008908,,"5,253.37",875.56
North West Leicestershire District Council,31UH ,Legal & Democratic,LDLS,Legal Services,Advertising Agency,18/04/2012,1234156,"1,249.82",Euro RSCG Riley,A001395,,"1,499.52",249.70
North West Leicestershire District Council,31UH ,Neighbourhoods & Communities,NACN,N & C Neighbourhoods,Grant payment,18/04/2012,1234163,"1,012.00",North West Leicestershire,A013575,,"1,012.00",0.00
North West Leicestershire District Council,31UH ,Neighbourhoods & Communities,NACN,N & C Neighbourhoods,Grants,18/04/2012,1234165,"9,355.00",East Midlands Housing Assocn,A000530,,"9,355.00",0.00
North West Leicestershire District Council,31UH ,Leisure Centres,HPLC,Hood Park Leisure Centre,Water - Sewerage services,18/04/2012,1234201,800.00,Severn Trent Water Limited,A001468,,800.00,0.00
North West Leicestershire District Council,31UH ,Leisure Centres,HPLC,Hood Park Leisure Centre,Energy - Electricity - Contract 1,18/04/2012,1234202,"2,245.83",Southern Electric,A030266,,"2,694.99",449.16
North West Leicestershire District Council,31UH ,Leisure Centres,HPLC,Hood Park Leisure Centre,Water - Sewerage services,18/04/2012,1234203,"1,469.55",Severn Trent Water Limited,A001468,,"1,469.55",0.00
North West Leicestershire District Council,31UH ,Housing Repairs,HRAHRM,HRA Housing Repairs & Maintenance,Building Services,18/04/2012,1234274,"3,801.97",J Tomlinson Ltd,A033342,,"4,562.36",760.39
North West Leicestershire District Council,31UH ,Environmental Health,EEHL,Environmental Health & Licensing,Grant payment,18/04/2012,1234275,"1,579.00",Leicestershire County Council,A038469,,"1,579.00",0.00
North West Leicestershire District Council,31UH ,Leisure & Culture,CULTIC,Cultural Services TIC,Grants,18/04/2012,1234210,"3,618.90",Ashby Dramatic Society,A021686,,"3,618.90",0.00
North West Leicestershire District Council,31UH ,Legal & Democratic,LDLS,Legal Services,Legal services,18/04/2012,1234265,"1,020.00",Browne Jacobson LLP,A000251,,"1,224.00",204.00
North West Leicestershire District Council,31UH ,Environmental Health,EES,Environmental Services,Animals - Boarding Kennels,10/04/2012,1234000,"1,415.16",College Garth Boarding Kennels,A000385,,"1,748.19",333.03
North West Leicestershire District Council,31UH ,Housing Repairs,HRAHRM,HRA Housing Repairs & Maintenance,Housing Repairs,10/04/2012,1234002,"11,227.21",Collective Enterprises Ltd,A036453,,"13,472.65","2,245.44"
North West Leicestershire District Council,31UH ,Finance,EXCH,Exchequer Services,Income Tax and National Insurance Contribution,10/04/2012,1234015,"259,530.59",Inland Revenue,A027321,,"259,530.59",0.00
North West Leicestershire District Council,31UH ,Housing Repairs,HRAHRM,HRA Housing Repairs & Maintenance,Maintenance Services,11/04/2012,1234119,621.64,Elite Engineering Supplies UK Ltd,A011223,,745.97,124.33
North West Leicestershire District Council,31UH ,Legal & Democratic,LDLS,Legal Services,Legal Services,18/04/2012,1234459,"2,300.00",Practical Law Company Ltd,A034860,,"2,760.00",460.00
North West Leicestershire District Council,31UH ,Leisure & Culture,CULTEV,Cultural Services Arts & Events,fund payment,18/04/2012,1234461,"1,143.50",Coalville Amateur Boxing Club,A038962,,"1,143.50",0.00
North West Leicestershire District Council,31UH ,Environmental Health,EES,Environmental Services,Funeral Directors,18/04/2012,1234464,900.00,The Co-operative Funeralcare,A023141,,900.00,0.00
North West Leicestershire District Council,31UH ,Environmental Health,EES,Environmental Services,Subscriptions -  Annual Revenue Contribution to Prospect Leics Ltd,18/04/2012,1234467,"4,718.90",Harborough District Council,A008631,,"4,718.90",0.00
North West Leicestershire District Council,31UH ,Environmental Health,EES,Environmental Services,Building Services,18/04/2012,1234470,"4,653.55",John Merison BMC Ltd,A001092,,"4,653.55",0.00
North West Leicestershire District Council,31UH ,Environmental Health,EES,Environmental Services,Grant payment,11/04/2012,1234056,"1,579.00",Leicestershire County Council,A038469,,"1,579.00",0.00
North West Leicestershire District Council,31UH ,Finance,EXCH,Exchequer Services,Recruitment - Agency Broker,11/04/2012,1234080,"3,401.40",Comensura Limited,A036958,,"4,081.69",680.29
North West Leicestershire District Council,31UH ,Leisure & Culture,CULTYP,Cultural Services Children & YoungPeople,Event - Thurs night drop in,18/04/2012,1234521,"6,109.46",Connexions Leicester Shire,A010358,,"7,331.35","1,221.89"
North West Leicestershire District Council,31UH ,Environmental Health,EES,Environmental Services,Grant payment,18/04/2012,1234522,"7,661.71",Leicestershire County Council,A034059,,"7,661.71",0.00
North West Leicestershire District Council,31UH ,Legal & Democratic,LDLS,Legal Services,Legal services - town planning,18/04/2012,1234471,"3,258.35",Marrons Consultancies Limited,A016315,,"3,910.00",651.65
North West Leicestershire District Council,31UH ,Environmental Health,EES,Environmental Services,Energy - Electricity - Contract 1,18/04/2012,1234491,"1,059.80",Southern Electric,A030266,,"1,271.76",211.96
North West Leicestershire District Council,31UH ,Legal & Democratic,LDLS,Legal Services,Books - Legal,18/04/2012,1234493,750.00,LexisNexis UK,A006155,,750.00,0.00
North West Leicestershire District Council,31UH ,Finance,FINPLA,Financial Planning,Insurance,18/04/2012,1234496,"8,682.93",Zurich Municipal,A001835,,"8,682.93",0.00
North West Leicestershire District Council,31UH ,Finance,FINPLA,Financial Planning,Insurance,18/04/2012,1234497,"221,488.81",Zurich Municipal,A001835,,"221,488.81",0.00
North West Leicestershire District Council,31UH ,Finance,FINPLA,Financial Planning,Insurance,18/04/2012,1234498,"8,814.77",Zurich Municipal,A001835,,"10,577.72","1,762.95"
North West Leicestershire District Council,31UH ,Leisure Centres,HLC,Hermitage Leisure Centre,Water - Sewerage services,18/04/2012,1234499,"1,502.73",Severn Trent Water Limited,A001468,,"1,502.73",0.00
North West Leicestershire District Council,31UH ,Finance,REVS,Revenues,Mail services,18/04/2012,1234539,"7,814.76",Royal Mail Group Plc,A001418,,"7,814.76",0.00
North West Leicestershire District Council,31UH ,Neighbourhoods & Communities,NACCS,N & C Community Safety,Home Safety Installations,18/04/2012,1234561,742.50,Safe Start-Home Safety,A039090,,742.50,0.00
North West Leicestershire District Council,31UH ,Finance,FINPLA,Financial Planning,Parish precepts,25/04/2012,1234745,"15,525.00",Whitwick Parish Council,A038617,,"15,525.00",0.00
North West Leicestershire District Council,31UH ,Finance,FINPLA,Financial Planning,Parish precepts,25/04/2012,1234746,"62,500.00",Ibstock Parish Council,A000807,,"62,500.00",0.00
North West Leicestershire District Council,31UH ,Finance,FINPLA,Financial Planning,Parish precepts,25/04/2012,1234747,"14,500.00",Long Whatton & Diseworth PC,A001010,,"14,500.00",0.00
North West Leicestershire District Council,31UH ,Finance,EXCH,Exchequer Services,Electricity - Supply for contract 4,18/04/2012,1234546,"9,349.87",British Gas Business,A034733,,"10,035.90",686.03
North West Leicestershire District Council,31UH ,Corporate Director,HR,Human Resources,Vehicle Leasing,18/04/2012,1234548,"2,318.72",Inchcape Fleet Solultions,A039405,,"2,566.23",247.51
North West Leicestershire District Council,31UH ,Information Technology,ICT,ICT Services,Photocopiers and consumables,18/04/2012,1234659,"1,341.45",The Danwood Group Ltd,A001301,,"1,609.74",268.29
North West Leicestershire District Council,31UH ,Information Technology,ICT,ICT Services,Photocopiers and consumables,18/04/2012,1234664,"4,534.27",The Danwood Group Ltd,A001301,,"5,441.12",906.85
North West Leicestershire District Council,31UH ,Legal & Democratic,LDELC,Electoral & Land Charges,IT - Scanning equipment,18/04/2012,1234556,"11,920.00",Idox Software Ltd,A034157,,"14,304.00","2,384.00"
North West Leicestershire District Council,31UH ,Leisure & Culture,CULTEV,Cultural Services Arts & Events,Grants,18/04/2012,1234562,"13,710.00",South and West Leicestershire,A037854,,"13,710.00",0.00
North West Leicestershire District Council,31UH ,Leisure & Culture,CULTEV,Cultural Services Arts & Events,Grants,18/04/2012,1234563,"2,630.83",Age Concern Leicestershire & Rutland (Welfare services) ltd,A027552,,"2,630.83",0.00
North West Leicestershire District Council,31UH ,Housing,HRAPBS,HRA Performance & Business Support,Fuel - solid,18/04/2012,1234660,"2,719.58",Coal4Energy Ltd,A031928,,"3,263.50",543.92
North West Leicestershire District Council,31UH ,Housing,HRAPBS,HRA Performance & Business Support,Fuel - solid,18/04/2012,1234661,"1,523.60",Coal4Energy Ltd,A031928,,"1,828.32",304.72
North West Leicestershire District Council,31UH ,Housing,HRAPBS,HRA Performance & Business Support,Fuel - solid,18/04/2012,1234662,"2,853.18",Coal4Energy Ltd,A031928,,"3,423.82",570.64
North West Leicestershire District Council,31UH ,Finance,FINPLA,Financial Planning,Parish precepts,25/04/2012,1234748,"3,350.00",Lockington Cum Hemington PC,A000999,,"3,350.00",0.00
North West Leicestershire District Council,31UH ,Finance,FINPLA,Financial Planning,Parish precepts,25/04/2012,1234749,"43,935.50",Kegworth Parish Council,A000882,,"43,935.50",0.00
North West Leicestershire District Council,31UH ,Finance,FINPLA,Financial Planning,Parish precepts,25/04/2012,1234750,"1,500.00",Charley Parish Council,A000322,,"1,500.00",0.00
North West Leicestershire District Council,31UH ,Finance,FINPLA,Financial Planning,Parish precepts,25/04/2012,1234751,"80,455.00",Castle Donington Parish Council,A000300,,"80,455.00",0.00
North West Leicestershire District Council,31UH ,Finance,FINPLA,Financial Planning,Parish precepts,25/04/2012,1234752,"6,500.00",Breedon On The Hill Parish Council,A000215,,"6,500.00",0.00
North West Leicestershire District Council,31UH ,Finance,FINPLA,Financial Planning,Parish precepts,25/04/2012,1234753,"7,500.00",Belton Parish Council,A000164,,"7,500.00",0.00
North West Leicestershire District Council,31UH ,Finance,FINPLA,Financial Planning,Parish precepts,25/04/2012,1234754,"46,075.00",Ashby Woulds Town Council,A000089,,"46,075.00",0.00
North West Leicestershire District Council,31UH ,Finance,FINPLA,Financial Planning,Parish precepts,25/04/2012,1234755,"173,100.00",Ashby De La Zouch Town Council,A000091,,"173,100.00",0.00
North West Leicestershire District Council,31UH ,Finance,FINPLA,Financial Planning,Parish precepts,25/04/2012,1234756,"4,500.00",Worthington Parish Council,A001813,,"4,500.00",0.00
North West Leicestershire District Council,31UH ,Finance,FINPLA,Financial Planning,Parish precepts,25/04/2012,1234757,"2,441.00",Swepstone Parish Council,A001613,,"2,441.00",0.00
North West Leicestershire District Council,31UH ,Finance,FINPLA,Financial Planning,Parish precepts,25/04/2012,1234758,"10,000.00",Swannington Parish Council,A001608,,"10,000.00",0.00
North West Leicestershire District Council,31UH ,Finance,FINPLA,Financial Planning,Parish precepts,25/04/2012,1234759,"3,088.00",Snarestone Parish Council,A001524,,"3,088.00",0.00
North West Leicestershire District Council,31UH ,Finance,FINPLA,Financial Planning,Parish precepts,25/04/2012,1234767,"7,360.00",Appleby Magna Parish Council,A000060,,"7,360.00",0.00
North West Leicestershire District Council,31UH ,Finance,FINPLA,Financial Planning,Parish precepts,25/04/2012,1234769,"28,925.50",Ellistown And Battleflat Parish Council,A021576,,"28,925.50",0.00
North West Leicestershire District Council,31UH ,Finance,FINPLA,Financial Planning,Parish precepts,25/04/2012,1234770,"10,752.50",Hugglescote & Donington Le Heath,A038616,,"10,752.50",0.00
North West Leicestershire District Council,31UH ,Finance,FINPLA,Financial Planning,Parish precepts,25/04/2012,1234760,"24,243.93",Ravenstone With Snibston PC,A001364,,"24,243.93",0.00
North West Leicestershire District Council,31UH ,Finance,FINPLA,Financial Planning,Parish precepts,25/04/2012,1234761,"8,875.00",Packington Parish Council,A001257,,"8,875.00",0.00
North West Leicestershire District Council,31UH ,Finance,FINPLA,Financial Planning,Parish precepts,25/04/2012,1234762,"2,480.00",Osgathorpe Parish Council,A001251,,"2,480.00",0.00
North West Leicestershire District Council,31UH ,Finance,FINPLA,Financial Planning,Parish precepts,25/04/2012,1234763,"21,500.00","Oakthorpe, Donisthorpe &",A001234,,"21,500.00",0.00
North West Leicestershire District Council,31UH ,Finance,FINPLA,Financial Planning,Parish precepts,25/04/2012,1234764,"50,889.50",Measham Parish Council,A001082,,"50,889.50",0.00
North West Leicestershire District Council,31UH ,Finance,FINPLA,Financial Planning,Parish precepts,25/04/2012,1234765,"5,748.50",Heather Parish Council,A000749,,"5,748.50",0.00
North West Leicestershire District Council,31UH ,Finance,FINPLA,Financial Planning,Parish precepts,25/04/2012,1234766,"7,000.00",Coleorton Parish Council,A000382,,"7,000.00",0.00
North West Leicestershire District Council,31UH ,Finance,EXCH,Exchequer Services,Recruitment - Agency Broker,25/04/2012,1234771,"7,178.88",Comensura Limited,A036958,,"8,614.68","1,435.80"
North West Leicestershire District Council,31UH ,Leisure Centres,HLC,Hermitage Leisure Centre,Claim,25/04/2012,1234772,"1,279.34",Measham Leisure Centre,A027454,,"1,535.20",255.86
North West Leicestershire District Council,31UH ,Leisure Centres,HLC,Hermitage Leisure Centre,Energy - Electricity - Contract 1,25/04/2012,1234775,"2,209.07",Southern Electric,A030266,,"2,650.88",441.81
North West Leicestershire District Council,31UH ,Leisure Centres,HLC,Hermitage Leisure Centre,Professional Services,25/04/2012,1234873,"4,492.00",Lambert Smith Hampton,A020974,,"5,390.40",898.40
North West Leicestershire District Council,31UH ,Leisure & Culture,LCM,Leisure & Cult Mangt,Professional Services,25/04/2012,1234874,"4,850.00",The Very Idea,A039179,,"4,850.00",0.00
North West Leicestershire District Council,31UH ,Street Management,ENOT,Environment Transport,Road fund licences,25/04/2012,1234877,"2,058.75",Post Office Limited,A008559,,"2,058.75",0.00
North West Leicestershire District Council,31UH ,Leisure & Culture,CULTYP,Cultural Services Children & YoungPeople,Social Work - Home visiting scheme,25/04/2012,1234879,"5,579.80",Homestart (N.W. Leics),A000780,,"5,579.80",0.00
North West Leicestershire District Council,31UH ,Leisure & Culture,CULTYP,Cultural Services Children & YoungPeople,Social Work - Home visiting scheme,25/04/2012,1234880,"4,049.40",Homestart (N.W. Leics),A000780,,"4,049.40",0.00
North West Leicestershire District Council,31UH ,Street Management,ESS,Environment - Street Scene,Water - Sewerage services,25/04/2012,1234896,886.07,Severn Trent Water Limited,A001468,,886.07,0.00
North West Leicestershire District Council,31UH ,Street Management,ESS,Environment - Street Scene,Gas & electricity supplier,25/04/2012,1234898,"2,026.75",E.ON Energy Electricity Income Account,A028766,,"2,432.10",405.35
North West Leicestershire District Council,31UH ,Street Management,ESS,Environment - Street Scene,Water - Sewerage services,25/04/2012,1234895,"5,192.24",Severn Trent Water Limited,A001468,,"5,192.24",0.00
North West Leicestershire District Council,31UH ,Environmental Health,EES,Environmental Services,Grants,25/04/2012,1235045,"3,551.33",Adaptions,A038668,,"3,551.33",0.00
North West Leicestershire District Council,31UH ,Neighbourhoods & Communities,NACCS,N & C Community Safety,Event - Thurs night drop in,25/04/2012,1235052,"1,220.00",Connexions Leicester Shire,A010358,,"1,220.00",0.00
North West Leicestershire District Council,31UH ,Leisure Centres,HPLC,Hood Park Leisure Centre,Telecommunication - Line Rental,25/04/2012,1235054,580.83,Virgin Media Business,A035373,,697.00,116.17
North West Leicestershire District Council,31UH ,Neighbourhoods & Communities,NACCS,N & C Community Safety,Architec fees ,25/04/2012,1235047,"2,520.00",Carillon Radio,A028670,,"2,520.00",0.00
North West Leicestershire District Council,31UH ,Leisure & Culture,CULTYP,Cultural Services Children & YoungPeople,Social Work - Home visiting scheme,25/04/2012,1235048,"15,877.50",Homestart (N.W. Leics),A000780,,"15,877.50",0.00
North West Leicestershire District Council,31UH ,Environmental Health,EES,Environmental Services,Grant payment,25/04/2012,1235049,"1,259.00",Leicestershire County Council,A038469,,"1,259.00",0.00
North West Leicestershire District Council,31UH ,Environmental Health,EES,Environmental Services,Grant payment,25/04/2012,1235050,"5,008.50",Sandaland Properties (Measham) Ltd,A031587,,"5,008.50",0.00
North West Leicestershire District Council,31UH ,Leisure & Culture,CULTYP,Cultural Services Children & YoungPeople,Education,25/04/2012,1235051,"2,711.20",LCC Warren Hills Primary School,A028026,,"2,711.20",0.00
North West Leicestershire District Council,31UH ,Planning & Development,ECP,Environment Community Planning,Training,25/04/2012,1235069,"1,372.92",Hinckley & Bosworth Borough Council,A000770,,"1,372.92",0.00
North West Leicestershire District Council,31UH ,Leisure & Culture,CULTYP,Cultural Services Children & YoungPeople,Events and Leisure,25/04/2012,1235077,"1,300.00",Rampz Community Group,A039419,,"1,300.00",0.00
North West Leicestershire District Council,31UH ,Planning & Development,EDC,Environment - Development Control,membership fees,25/04/2012,1235078,790.00,Surrey County Council,A010365,,790.00,0.00
North West Leicestershire District Council,31UH ,Housing,HRAHM,HRA Housing Management,membership Renewal,25/04/2012,1235087,"1,240.00",TPAS Limited,A028863,,"1,289.60",49.60
North West Leicestershire District Council,31UH ,Finance,EXCH,Exchequer Services,Energy - Gas - Contract 2 + 5 + 6,25/04/2012,1235150,"2,578.31",Corona Energy Retail 4 Ltd,A035709,,"3,039.97",461.66
North West Leicestershire District Council,31UH ,Finance,EXCH,Exchequer Services,Energy - Gas - Contract 2 + 5 + 6,25/04/2012,1235151,"34,554.69",Corona Energy Retail 4 Ltd,A035709,,"41,427.23","6,872.54"
North West Leicestershire District Council,31UH ,Finance,EXCH,Exchequer Services,Energy - Gas - Contract 2 + 5 + 6,25/04/2012,1235152,"19,863.22",Corona Energy Retail 4 Ltd,A035709,,"23,799.67","3,936.45"
North West Leicestershire District Council,31UH ,Information Technology,ICT,ICT Services,IT - Computer Equipment,25/04/2012,1233823,"1,423.88",ComputerLand UK Plc,A031430,,"1,708.66",284.78
North West Leicestershire District Council,31UH ,Leisure Centres,HLBC,Hermitage Bar & Catering,Catering Services - Equipment,03/04/2012,1233209,"1,111.30",Nisbets Plc,A007087,,"1,333.56",222.26
North West Leicestershire District Council,31UH ,Street Management,ENOT,Environment Transport,Fuel ,03/04/2012,1233363,697.80,Pace Petroleum Ltd,A034942,,732.69,34.89
North West Leicestershire District Council,31UH ,Street Management,ENOT,Environment Transport,Fuel ,03/04/2012,1233364,"21,336.56",Pace Petroleum Ltd,A034942,,"25,603.87","4,267.31"
North West Leicestershire District Council,31UH ,Leisure Centres,HPLC,Hood Park Leisure Centre,Leisure - Swimwear and accessories,03/04/2012,1233403,660.46,Zoggs International Ltd,A001833,,787.90,127.44
North West Leicestershire District Council,31UH ,Leisure Centres,HLBC,Hermitage Bar & Catering,Catering Supplies - Confectionery.,03/04/2012,1233405,696.58,Palmer Harvey Mclane Ltd,A001264,,816.63,120.05
North West Leicestershire District Council,31UH ,Information Technology,ICT,ICT Services,IT - Computer disaster recovery,03/04/2012,1233377,"3,340.61",ICM Business Continuity Services Ltd,A024351,,"4,008.73",668.12
North West Leicestershire District Council,31UH ,Property Services,PROPFM,Property Facilities Management,"Cleaning Materials - Toilet rolls, liquid soap",03/04/2012,1233379,518.78,Admiral Cleaning Supplies Ltd,A015996,,622.53,103.75
North West Leicestershire District Council,31UH ,Legal & Democratic,LDCE,Civic Expenses,Catalogue stocks,03/04/2012,1233381,508.50,ESPO,A000958,,610.20,101.70
North West Leicestershire District Council,31UH ,Leisure Centres,HPLC,Hood Park Leisure Centre,Utility charges,03/04/2012,1233400,"1,768.25",L.C.C.Ivanhoe College,A002200,,"2,121.90",353.65
North West Leicestershire District Council,31UH ,Information Technology,ICT,ICT Services,IT - software services,03/04/2012,1232697,"3,521.54",Phoenix Software Limited,A001298,,"4,225.85",704.31
North West Leicestershire District Council,31UH ,Environmental Health,EES,Environmental Services,Environmental & safety products,03/04/2012,1233446,"3,033.00",Bruel & Kjaer Uk Limited,A000253,,"3,639.60",606.60
North West Leicestershire District Council,31UH ,Leisure Centres,HLC,Hermitage Leisure Centre,Building - General Maintenance works - Minor framework,03/04/2012,1233447,"1,820.65",Herbert Baggaley Construction Limited,A036241,,"2,184.78",364.13
North West Leicestershire District Council,31UH ,Leisure & Culture,CULTEV,Cultural Services Arts & Events,Sound & Lighting - Corporate Events,03/04/2012,1233681,"1,085.00",Chameleon Pro Audio & Lighting Ltd,A027592,,"1,302.00",217.00
North West Leicestershire District Council,31UH ,Street Management,ENOT,Environment Transport,Engineering - Parts / Supplies,03/04/2012,1233688,677.05,Taylor Engineering & Fabrications Ltd,A036178,,812.45,135.40
North West Leicestershire District Council,31UH ,Street Management,ENOP,Environment Parks,Energy Performance Certificates,03/04/2012,1233690,"1,263.00",White Young Green Environmental Ltd,A030438,,"1,515.60",252.60
North West Leicestershire District Council,31UH ,Street Management,ENOT,Environment Transport,Oil Products,03/04/2012,1233699,"1,072.00",Freedom Lubricants Ltd,A028311,,"1,286.40",214.40
North West Leicestershire District Council,31UH ,Housing Strategy,HS,Community - Housing Strategy,Accomodation - Bed and Breakfast for Housing Strategy,03/04/2012,1233701,560.00,Pinewood Lodge,A032364,,560.00,0.00
North West Leicestershire District Council,31UH ,Housing Strategy,HS,Community - Housing Strategy,Professional fees,03/04/2012,1233728,627.50,Mansfield Mediation Ltd,A034964,,753.00,125.50
North West Leicestershire District Council,31UH ,Property Services,PROPCL,Property Commercial Lettings,Security Services,03/04/2012,1233730,"2,028.30",Secom Plc,A003044,,"2,433.96",405.66
North West Leicestershire District Council,31UH ,Property Services,PROPCL,Property Commercial Lettings,Communications - Telephone System Maintenance,03/04/2012,1233733,"2,697.05",Support Span Limited,A036263,,"3,236.46",539.41
North West Leicestershire District Council,31UH ,Property Services,PROPCL,Property Commercial Lettings,Software Support ,03/04/2012,1233734,595.00,CommSoft Support,A028853,,714.00,119.00
North West Leicestershire District Council,31UH ,Information Technology,ICT,ICT Services,IT - Computer networking and cabling,03/04/2012,1233756,700.00,Modern Telecom Limited,A033207,,840.00,140.00
North West Leicestershire District Council,31UH ,Property Services,PROPCL,Property Commercial Lettings,Building - General Maintenance works - Minor framework,03/04/2012,1233765,"4,782.00",Herbert Baggaley Construction Limited,A036241,,"5,738.40",956.40
North West Leicestershire District Council,31UH ,Housing Repairs,HRAHRM,HRA Housing Repairs & Maintenance,Office Relocations,03/04/2012,1232632,"1,433.38",Pickfords,A036133,,"1,692.58",259.20
North West Leicestershire District Council,31UH ,Housing Repairs,HRAHRM,HRA Housing Repairs & Maintenance,Consultancy - Property Professional Services,03/04/2012,1232674,"5,000.00",Savills Commercial Limited,A032547,,"6,000.00","1,000.00"
North West Leicestershire District Council,31UH ,Housing Repairs,HRAHRM,HRA Housing Repairs & Maintenance,Advertising Agency,03/04/2012,1233328,937.56,Euro RSCG Riley,A001395,,"1,124.88",187.32
North West Leicestershire District Council,31UH ,Communications,CP,Corporate - Communications,Advertising Agency,03/04/2012,1233329,544.67,Euro RSCG Riley,A001395,,653.49,108.82
North West Leicestershire District Council,31UH ,Leisure Centres,HLC,Hermitage Leisure Centre,Leisure - Ultra Violet Filtration System for Leisure Refurbishment,03/04/2012,1233448,"1,176.00",Sterling Hydrotech Limited,A037677,,"1,411.20",235.20
North West Leicestershire District Council,31UH ,Planning & Development,EPP,Environment Planning Policy,Grant payment,03/04/2012,1233714,"3,663.00",Leicestershire County Council,A034059,,"3,663.00",0.00
North West Leicestershire District Council,31UH ,Leisure Centres,HLC,Hermitage Leisure Centre,Leisure - Bespoke Lockers & Cubicles for wetside changing rooms,11/04/2012,1232739,"1,547.50",Craftsman Quality Servicing Limited,A037490,,"1,857.00",309.50
North West Leicestershire District Council,31UH ,Planning & Development,EPP,Environment Planning Policy,Design - Graphic My Place Branding,11/04/2012,1233723,665.00,Three One Zero Design,A036525,,665.00,0.00
North West Leicestershire District Council,31UH ,Street Management,ENOT,Environment Transport,Vehicle Repairs - Trucks,11/04/2012,1233869,624.61,Digraph Transport Supplies Ltd,A000486,,749.54,124.93
North West Leicestershire District Council,31UH ,Street Management,ESS,Environment - Street Scene,Pay & Display Machines,11/04/2012,1233919,"3,880.00",Metric Group Ltd (Sales),A028996,,"4,656.00",776.00
North West Leicestershire District Council,31UH ,Planning & Development,EDC,Environment - Development Control,Surveys - Valuation Office Agency,11/04/2012,1233468,"2,000.00",Valuation Office Agency,A036190,,"2,400.00",400.00
North West Leicestershire District Council,31UH ,#N/A,AUDIT,Audit Services,Training -RIPA,11/04/2012,1233847,"1,683.12",Hasan  Associates Limited,A028283,,"2,019.74",336.62
North West Leicestershire District Council,31UH ,Planning & Development,ECCTV,Environment - Town Centre/CCTV,Cleaning & Hygiene Services,11/04/2012,1233848,968.94,Phs Group Ltd,A009237,,"1,162.73",193.79
North West Leicestershire District Council,31UH ,Chief Exec,CHEX,Chief Executive,Economic Partnership Payment,11/04/2012,1233854,"2,000.00",Leicester City Council Accounts Receivable,A034295,,"2,000.00",0.00
North West Leicestershire District Council,31UH ,Property Services,PROPCL,Property Commercial Lettings,Mail Supplies -Franking Machine,11/04/2012,1233855,"1,013.00",Purchase Power,A008204,,"1,013.00",0.00
North West Leicestershire District Council,31UH ,Street Management,ENOT,Environment Transport,road Maintenance,11/04/2012,1233872,600.00,Leicestershire County Counc,A002693,,720.00,120.00
North West Leicestershire District Council,31UH ,Street Management,ENOT,Environment Transport,road Maintenance,11/04/2012,1233873,"1,700.00",Leicestershire County Counc,A002693,,"2,040.00",340.00
North West Leicestershire District Council,31UH ,Leisure & Culture,SPA,Sport & Physical Activity,CDM Coordinator,11/04/2012,1233921,"1,400.00",Westleigh Development Ltd,A039359,,"1,680.00",280.00
North West Leicestershire District Council,31UH ,Leisure Centres,HLC,Hermitage Leisure Centre,Cleaning & Hygiene Services,11/04/2012,1233947,841.65,Phs Group Ltd,A009237,,"1,009.98",168.33
North West Leicestershire District Council,31UH ,Leisure Centres,HLC,Hermitage Leisure Centre,Financial searches,11/04/2012,1233955,754.40,Experian Ltd,A009242,,905.28,150.88
North West Leicestershire District Council,31UH ,Housing,HRAPBS,HRA Performance & Business Support,Engineering site visit,11/04/2012,1233715,887.50,B & S group Ltd,A039285,,"1,065.00",177.50
North West Leicestershire District Council,31UH ,Leisure & Culture,SPA,Sport & Physical Activity,Training,11/04/2012,1233835,"1,695.00",Sefton PCT,A039326,,"2,034.00",339.00
North West Leicestershire District Council,31UH ,Environmental Health,EEHL,Environmental Health & Licensing,Pet chipping,11/04/2012,1234025,614.17,Pet ID,A039325,,737.00,122.83
North West Leicestershire District Council,31UH ,Information Technology,ICT,ICT Services,IT - Equipment / Consumables,11/04/2012,1233868,"1,750.00",Probrand Limited,A025151,,"2,100.00",350.00
North West Leicestershire District Council,31UH ,Housing Repairs,HRAHRM,HRA Housing Repairs & Maintenance,Catalogue stocks,11/04/2012,1234037,"2,124.00",ESPO,A000958,,"2,548.80",424.80
North West Leicestershire District Council,31UH ,Planning & Development,ECCTV,Environment - Town Centre/CCTV,Security - Provide Monitoring Services in respect of CCTV,11/04/2012,1234054,"3,923.00",Premier Security Services (Midlands) Limited,A038132,,"4,707.60",784.60
North West Leicestershire District Council,31UH ,Finance,FINPLA,Financial Planning,Rent payments,11/04/2012,1234075,"71,797.22",Leicestershire County Council,A000950,,"71,797.22",0.00
North West Leicestershire District Council,31UH ,Street Management,ENOT,Environment Transport,Pipe installation,11/04/2012,1234083,600.00,Pipeline Products and Installation,A039328,,720.00,120.00
North West Leicestershire District Council,31UH ,Information Technology,ICT,ICT Services,IT - Computer Equipment,11/04/2012,1234084,"1,071.68",ComputerLand UK Plc,A031430,,"1,286.02",214.34
North West Leicestershire District Council,31UH ,Street Management,ENOT,Environment Transport,Fuel ,11/04/2012,1234086,"14,046.09",Pace Petroleum Ltd,A034942,,"16,855.31","2,809.22"
North West Leicestershire District Council,31UH ,Planning & Development,EPP,Environment Planning Policy,Consultant - Water Cycle Study,11/04/2012,1234089,"17,358.04",AMEC Environment & Infrastructure UK Ltd,A036580,,"20,829.65","3,471.61"
North West Leicestershire District Council,31UH ,Property Services,PROPCL,Property Commercial Lettings,Consultancy Services -Property CDM,11/04/2012,1234094,"1,047.50",Wm Saunders Partnership LLP,A035772,,"1,257.00",209.50
North West Leicestershire District Council,31UH ,Planning & Development,EPP,Environment Planning Policy,Consultant - Water Cycle Study,18/04/2012,1234088,"1,000.00",AMEC Environment & Infrastructure UK Ltd,A036580,,"1,200.00",200.00
North West Leicestershire District Council,31UH ,Property Services,PROPFM,Property Facilities Management,Gas / Electricity Boiler Repair Work,18/04/2012,1234121,512.00,AD Smith & Son (Nottm) Ltd,A000510,,614.40,102.40
North West Leicestershire District Council,31UH ,Street Management,ESS,Environment - Street Scene,Cleaning & Hygiene Services,18/04/2012,1234131,854.50,Phs Group Ltd,A009237,,"1,025.40",170.90
North West Leicestershire District Council,31UH ,Information Technology,ICT,ICT Services,Paper,18/04/2012,1234143,577.30,Antalis McNaughton Limited,A038178,,692.76,115.46
North West Leicestershire District Council,31UH ,Property Services,PROPFM,Property Facilities Management,Cleaning & Hygiene Services,18/04/2012,1234150,"4,466.41",Phs Group Ltd,A009237,,"5,359.69",893.28
North West Leicestershire District Council,31UH ,Legal & Democratic,LDLS,Legal Services,Shared Service/ Leisure Service Project,18/04/2012,1234142,"13,250.00",Charnwood Borough Council,A010659,,"15,900.00","2,650.00"
North West Leicestershire District Council,31UH ,Corporate Director,HR,Human Resources,IT - software - HR,18/04/2012,1234167,"3,999.00",Bond International Software (UK) Ltd,A000839,,"4,798.80",799.80
North West Leicestershire District Council,31UH ,Leisure Centres,HLBC,Hermitage Bar & Catering,Catering Supplies - Confectionery.,18/04/2012,1234199,661.59,Palmer Harvey Mclane Ltd,A001264,,768.83,107.24
North West Leicestershire District Council,31UH ,Corporate Director,HR,Human Resources,Consultancy - Finance,18/04/2012,1234200,"7,859.65",R W Nelsey Consultancy,A038049,,"7,859.65",0.00
North West Leicestershire District Council,31UH ,Street Management,ENOT,Environment Transport,Vehicle Repairs,18/04/2012,1234213,"1,338.61",Lee Wells Autobodies Ltd,A031849,,"1,606.33",267.72
North West Leicestershire District Council,31UH ,Housing,HRAOPS,HRA Older Persons Service,Rent payments,18/04/2012,1234214,589.58,Leicestershire County Council,A000950,,589.58,0.00
North West Leicestershire District Council,31UH ,Street Management,ENOGT,Environment General Technician,Small civils and plant hire,18/04/2012,1234233,879.00,Cuckoo Gap Limited,A000438,,"1,054.80",175.80
North West Leicestershire District Council,31UH ,Street Management,ENOGT,Environment General Technician,Small civils and plant hire,18/04/2012,1234234,716.50,Cuckoo Gap Limited,A000438,,859.80,143.30
North West Leicestershire District Council,31UH ,Street Management,ENOGT,Environment General Technician,Small civils and plant hire,18/04/2012,1234236,707.00,Cuckoo Gap Limited,A000438,,848.40,141.40
North West Leicestershire District Council,31UH ,Street Management,ENOGT,Environment General Technician,Small civils and plant hire,18/04/2012,1234237,837.26,Cuckoo Gap Limited,A000438,,"1,004.71",167.45
North West Leicestershire District Council,31UH ,Street Management,ENOGT,Environment General Technician,Small civils and plant hire,18/04/2012,1234240,500.94,Cuckoo Gap Limited,A000438,,601.13,100.19
North West Leicestershire District Council,31UH ,Street Management,ENOT,Environment Transport,Building Services,18/04/2012,1234246,"2,600.00",R Massey & Son (Woodville) Ltd,A033258,,"3,120.00",520.00
North West Leicestershire District Council,31UH ,Housing Strategy,HS,Community - Housing Strategy,Accomodation - Bed and Breakfast for Housing Strategy,18/04/2012,1234252,700.00,Pinewood Lodge,A032364,,700.00,0.00
North West Leicestershire District Council,31UH ,Housing,HRAHM,HRA Housing Management,Parish precepts,18/04/2012,1234141,"1,680.37",Charnwood Borough Council,A000323,,"2,016.44",336.07
North West Leicestershire District Council,31UH ,Corporate Director,HR,Human Resources,Training - CLT Team Development Work,18/04/2012,1234161,"4,576.80",Fields of Learning,A030537,,"5,492.16",915.36
North West Leicestershire District Council,31UH ,Housing,HRAHM,HRA Housing Management,Printing - Lot 2 + 3,18/04/2012,1234241,790.00,The Barkby Thorpe Press,A037241,,790.00,0.00
North West Leicestershire District Council,31UH ,Information Technology,ICT,ICT Services,Telecommunications,18/04/2012,1234273,"2,096.77",Cable & Wireless Worldwide,A038473,,"2,516.12",419.35
North West Leicestershire District Council,31UH ,Street Management,ESS,Environment - Street Scene,Cleaning & Hygiene Services,18/04/2012,1234132,786.10,Phs Group Ltd,A009237,,943.32,157.22
North West Leicestershire District Council,31UH ,Leisure Centres,HLBC,Hermitage Bar & Catering,Catering Supplies - Beverages,18/04/2012,1234426,"1,141.39",WaverleyTBS Ltd,A032632,,"1,369.67",228.28
North West Leicestershire District Council,31UH ,Leisure & Culture,CULTEV,Cultural Services Arts & Events,Events and Fesitivals,18/04/2012,1234430,600.00,Julian Vernon Mosiacs,A039368,,600.00,0.00
North West Leicestershire District Council,31UH ,Leisure Centres,HLBC,Hermitage Bar & Catering,Catering Services,18/04/2012,1234442,577.10,Briers Butchers Limited,A000218,,577.10,0.00
North West Leicestershire District Council,31UH ,Legal & Democratic,LDLS,Legal Services,Training - CLT Team Development Work,18/04/2012,1234453,650.00,Fields of Learning,A030537,,780.00,130.00
North West Leicestershire District Council,31UH ,Corporate Director,HR,Human Resources,Childcare Vouchers,18/04/2012,1234472,"3,351.00",Premier Employer Solutions Limited,A038606,,"3,351.00",0.00
North West Leicestershire District Council,31UH ,Property Services,PROPCL,Property Commercial Lettings,Horticulture - Internal Plants,18/04/2012,1234260,552.50,Urban Planters Leicestershire (limited),A003371,,663.00,110.50
North West Leicestershire District Council,31UH ,Finance,FINPLA,Financial Planning,Housing - Asset register software,18/04/2012,1234530,"3,000.00",CIPFA Business Limited,A036780,,"3,600.00",600.00
North West Leicestershire District Council,31UH ,Finance,FINPLA,Financial Planning,Housing - Asset register software,18/04/2012,1234531,"1,200.00",CIPFA Business Limited,A036780,,"1,440.00",240.00
North West Leicestershire District Council,31UH ,Finance,FINPLA,Financial Planning,"Printing- Council Tax, NNDR and benefits",18/04/2012,1234535,"3,375.90",CFH - Total Document Management Limited,A038192,,"3,375.90",0.00
North West Leicestershire District Council,31UH ,Finance,FINPLA,Financial Planning,"Printing- Council Tax, NNDR and benefits",18/04/2012,1234536,"7,721.75",CFH - Total Document Management Limited,A038192,,"9,266.10","1,544.35"
North West Leicestershire District Council,31UH ,Housing Repairs,HRAHRM,HRA Housing Repairs & Maintenance,PPE,18/04/2012,1234555,"1,426.74",Westbury Industrial Supplies Limited,A009933,,"1,712.09",285.35
North West Leicestershire District Council,31UH ,Street Management,ENOT,Environment Transport,road Maintenance,18/04/2012,1233871,"9,850.00",Leicestershire County Counc,A002693,,"11,820.00","1,970.00"
North West Leicestershire District Council,31UH ,Housing Repairs,HRAHRM,HRA Housing Repairs & Maintenance,Catalogue stocks,18/04/2012,1234036,"3,186.00",ESPO,A000958,,"3,823.20",637.20
North West Leicestershire District Council,31UH ,Leisure & Culture,CULTEV,Cultural Services Arts & Events,Events- Corporate Entertainment,18/04/2012,1234431,540.00,Acorns Fun Casinos,A033199,,540.00,0.00
North West Leicestershire District Council,31UH ,Property Services,PROPFM,Property Facilities Management,Security services,25/04/2012,1233828,"3,565.00",Spectra Security Limited,A002190,,"4,278.00",713.00
North West Leicestershire District Council,31UH ,Property Services,PROPFM,Property Facilities Management,Security services,25/04/2012,1233829,"2,877.00",Spectra Security Limited,A002190,,"3,452.40",575.40
North West Leicestershire District Council,31UH ,Leisure Centres,HLC,Hermitage Leisure Centre,Catalogue stocks,25/04/2012,1234795,"1,524.00",ESPO,A000958,,"1,828.80",304.80
North West Leicestershire District Council,31UH ,Leisure Centres,HLC,Hermitage Leisure Centre,Leisure - Recreational equipment supplier,25/04/2012,1234796,"2,357.82",Technogym Uk Limited,A001642,,"2,829.38",471.56
North West Leicestershire District Council,31UH ,Leisure Centres,HLC,Hermitage Leisure Centre,Sound & Lighting - Corporate Events,25/04/2012,1234797,835.00,Chameleon Pro Audio & Lighting Ltd,A027592,,"1,002.00",167.00
North West Leicestershire District Council,31UH ,Property Services,PROPCL,Property Commercial Lettings,Publishers,25/04/2012,1234799,625.00,Burrows Communications Ltd,A008514,,750.00,125.00
North West Leicestershire District Council,31UH ,Street Management,ENOP,Environment Parks,Grounds Maintenance - Landscaping,25/04/2012,1234800,600.00,Manor Landscapes,A035186,,600.00,0.00
North West Leicestershire District Council,31UH ,Leisure Centres,HPLC,Hood Park Leisure Centre,Deep clean,25/04/2012,1234805,"1,470.00",Renue UK Ltd,A039313,,"1,764.00",294.00
North West Leicestershire District Council,31UH ,Housing Repairs,HRAHRM,HRA Housing Repairs & Maintenance,Catalogue stocks,25/04/2012,1234856,"2,272.00",ESPO,A000958,,"2,726.40",454.40
North West Leicestershire District Council,31UH ,Finance,FINPLA,Financial Planning,Subscriptions,25/04/2012,1234915,"8,493.00",Audit Commission,A000110,,"10,191.60","1,698.60"
North West Leicestershire District Council,31UH ,Property Services,PROPFM,Property Facilities Management,Waste Disposal - Confidential ,25/04/2012,1234821,559.00,Groundwork Leicester & Leicestershire Limited,A036206,,670.80,111.80
North West Leicestershire District Council,31UH ,Leisure Centres,CDCC,Castle Donington Community College,Portable accommodation,25/04/2012,1234919,509.26,Elliott Group Limited,A005413,,611.11,101.85
North West Leicestershire District Council,31UH ,Leisure Centres,HPLC,Hood Park Leisure Centre, Housing- Fire Risk Assessments,25/04/2012,1234921,545.00,London Fire Consultants & Design,A038408,,654.00,109.00
North West Leicestershire District Council,31UH ,Leisure Centres,HPLC,Hood Park Leisure Centre,Leisure-Repair and Maintenance -screen curtain,25/04/2012,1234922,700.00,Crocker Brothers Limited,A038388,,840.00,140.00
North West Leicestershire District Council,31UH ,Leisure Centres,HPLC,Hood Park Leisure Centre,Cleaning & Hygiene Services,25/04/2012,1234924,627.74,Phs Group Ltd,A009237,,753.29,125.55
North West Leicestershire District Council,31UH ,Leisure Centres,HPLC,Hood Park Leisure Centre,Lift Maintenance Contract,25/04/2012,1234928,793.00,Hytrac Lifts Limited,A036300,,951.60,158.60
North West Leicestershire District Council,31UH ,Leisure Centres,HPLC,Hood Park Leisure Centre,Water - Treatment,25/04/2012,1234936,535.08,Biolab Uk Limited,A007793,,642.10,107.02
North West Leicestershire District Council,31UH ,Leisure Centres,HPLC,Hood Park Leisure Centre,Maintenance Cover,25/04/2012,1234940,"4,933.90",ENER.G Combined Power Ltd,A034390,,"5,920.68",986.78
North West Leicestershire District Council,31UH ,Leisure Centres,HLBC,Hermitage Bar & Catering,Brewery,25/04/2012,1234944,903.70,Scottish & Newcastle UK,A001828,,"1,084.44",180.74
North West Leicestershire District Council,31UH ,Street Management,ENOT,Environment Transport,Design Work ,25/04/2012,1235002,"28,450.00",G & J Peck Ltd,A038933,,"34,140.00","5,690.00"
North West Leicestershire District Council,31UH ,Street Management,ESS,Environment - Street Scene,Consultancy,25/04/2012,1235013,"1,760.00",Sharp Acoustics ,A039235,,"2,112.00",352.00
North West Leicestershire District Council,31UH ,Housing Strategy,HS,Community - Housing Strategy,Consultancy - Housing,25/04/2012,1235017,"1,238.00",HQN Ltd,A007983,,"1,485.60",247.60
North West Leicestershire District Council,31UH ,Leisure & Culture,SPA,Sport & Physical Activity,Funding payment,25/04/2012,1235018,700.00,Leicestershire & Rutland County FA Ltd,A015166,,840.00,140.00
North West Leicestershire District Council,31UH ,Planning & Development,EDC,Environment - Development Control,Subscriptions - Development Control Services,25/04/2012,1235028,680.00,Haymarket Media Group,A035826,,816.00,136.00
North West Leicestershire District Council,31UH ,Leisure Centres,HLBC,Hermitage Bar & Catering,Catering Supplies - Confectionery.,25/04/2012,1235033,509.20,Palmer Harvey Mclane Ltd,A001264,,597.45,88.25
North West Leicestershire District Council,31UH ,Leisure Centres,HLC,Hermitage Leisure Centre,Music License,25/04/2012,1235034,771.24,Phonographic Performances Ltd,A001300,,925.49,154.25
North West Leicestershire District Council,31UH ,Corporate Director,HR,Human Resources,Consultancy,25/04/2012,1235037,"1,818.30",Libby Carter Limited,A033121,,"2,130.30",312.00
North West Leicestershire District Council,31UH ,Corporate Director,HR,Human Resources,Consultancy - Finance,25/04/2012,1235038,"4,738.45",R W Nelsey Consultancy,A038049,,"4,738.45",0.00
North West Leicestershire District Council,31UH ,Information Technology,ICT,ICT Services,IT - Computer Equipment,25/04/2012,1233851,"3,300.00",ComputerLand UK Plc,A031430,,"3,960.00",660.00
North West Leicestershire District Council,31UH ,Information Technology,ICT,ICT Services,IT - Scanning equipment,25/04/2012,1234137,"8,286.59",Idox Software Ltd,A034157,,"9,943.90","1,657.31"
North West Leicestershire District Council,31UH ,Leisure Centres,HPLC,Hood Park Leisure Centre,Leisure - Swimwear and accessories,25/04/2012,1234932,847.80,Zoggs International Ltd,A001833,,"1,017.36",169.56
North West Leicestershire District Council,31UH ,Street Management,ENOT,Environment Transport,Fuel ,25/04/2012,1235011,683.48,Pace Petroleum Ltd,A034942,,717.65,34.17
North West Leicestershire District Council,31UH ,Street Management,ENOT,Environment Transport,Fuel ,25/04/2012,1235012,"13,461.77",Pace Petroleum Ltd,A034942,,"16,154.12","2,692.35"
North West Leicestershire District Council,31UH ,Housing,HRAOPS,HRA Older Persons Service,Report,25/04/2012,1235014,"6,000.00",Cornwall College,A025981,,"7,200.00","1,200.00"
North West Leicestershire District Council,31UH ,Environmental Health,EEHL,Environmental Health & Licensing,Research,25/04/2012,1235021,"1,065.60",Staffordshire County Council,A039303,,"1,278.72",213.12
North West Leicestershire District Council,31UH,Housing Repairs,HRAHRM,HRA Housing Repairs & Maintenance,Housing Maintenance - Replacement Windows and Doors,03/04/2012,1233472,"2,413.61",SBP Limited (Trading as Plastal & Permadoor),A036741,"2,896.33",482.72
North West Leicestershire District Council,31UH,Housing Repairs,HRAHRM,HRA Housing Repairs & Maintenance,Construction - Rewire Works,03/04/2012,1233473,85.00,Lovell Respond,A038131,102.00,17.00
North West Leicestershire District Council,31UH,Housing Repairs,HRAHRM,HRA Housing Repairs & Maintenance,Construction - Rewire Works,03/04/2012,1233474,85.00,Lovell Respond,A038131,102.00,17.00
North West Leicestershire District Council,31UH,Housing Repairs,HRAHRM,HRA Housing Repairs & Maintenance,Construction - Rewire Works,03/04/2012,1233475,85.00,Lovell Respond,A038131,102.00,17.00
North West Leicestershire District Council,31UH,Housing Repairs,HRAHRM,HRA Housing Repairs & Maintenance,Construction - Rewire Works,03/04/2012,1233476,85.00,Lovell Respond,A038131,102.00,17.00
North West Leicestershire District Council,31UH,Housing Repairs,HRAHRM,HRA Housing Repairs & Maintenance,Construction - Rewire Works,03/04/2012,1233477,85.00,Lovell Respond,A038131,102.00,17.00
North West Leicestershire District Council,31UH,Housing Repairs,HRAHRM,HRA Housing Repairs & Maintenance,Construction - Rewire Works,03/04/2012,1233478,85.00,Lovell Respond,A038131,102.00,17.00
North West Leicestershire District Council,31UH,Housing Repairs,HRAHRM,HRA Housing Repairs & Maintenance,Construction - Rewire Works,03/04/2012,1233479,85.00,Lovell Respond,A038131,102.00,17.00
North West Leicestershire District Council,31UH,Housing Repairs,HRAHRM,HRA Housing Repairs & Maintenance,Construction - Rewire Works,03/04/2012,1233480,85.00,Lovell Respond,A038131,102.00,17.00
North West Leicestershire District Council,31UH,Housing Repairs,HRAHRM,HRA Housing Repairs & Maintenance,Construction - Rewire Works,03/04/2012,1233481,85.00,Lovell Respond,A038131,102.00,17.00
North West Leicestershire District Council,31UH,Housing Repairs,HRAHRM,HRA Housing Repairs & Maintenance,Construction - Rewire Works,03/04/2012,1233482,85.00,Lovell Respond,A038131,102.00,17.00
North West Leicestershire District Council,31UH,Housing Repairs,HRAHRM,HRA Housing Repairs & Maintenance,Construction - Rewire Works,03/04/2012,1233483,85.00,Lovell Respond,A038131,102.00,17.00
North West Leicestershire District Council,31UH,Housing Repairs,HRAHRM,HRA Housing Repairs & Maintenance,Construction - Rewire Works,03/04/2012,1233484,85.00,Lovell Respond,A038131,102.00,17.00
North West Leicestershire District Council,31UH,Housing Repairs,HRAHRM,HRA Housing Repairs & Maintenance,Construction - Rewire Works,03/04/2012,1233485,85.00,Lovell Respond,A038131,102.00,17.00
North West Leicestershire District Council,31UH,Housing Repairs,HRAHRM,HRA Housing Repairs & Maintenance,Construction - Rewire Works,03/04/2012,1233486,85.00,Lovell Respond,A038131,102.00,17.00
North West Leicestershire District Council,31UH,Housing Repairs,HRAHRM,HRA Housing Repairs & Maintenance,Construction - Rewire Works,03/04/2012,1233487,85.00,Lovell Respond,A038131,102.00,17.00
North West Leicestershire District Council,31UH,Housing Repairs,HRAHRM,HRA Housing Repairs & Maintenance,Construction - Rewire Works,03/04/2012,1233488,85.00,Lovell Respond,A038131,102.00,17.00
North West Leicestershire District Council,31UH,Housing Repairs,HRAHRM,HRA Housing Repairs & Maintenance,Construction - Rewire Works,03/04/2012,1233489,85.00,Lovell Respond,A038131,102.00,17.00
North West Leicestershire District Council,31UH,Housing Repairs,HRAHRM,HRA Housing Repairs & Maintenance,Construction - Rewire Works,03/04/2012,1233490,85.00,Lovell Respond,A038131,102.00,17.00
North West Leicestershire District Council,31UH,Housing Repairs,HRAHRM,HRA Housing Repairs & Maintenance,Construction - Rewire Works,03/04/2012,1233491,85.00,Lovell Respond,A038131,102.00,17.00
North West Leicestershire District Council,31UH,Housing Repairs,HRAHRM,HRA Housing Repairs & Maintenance,Construction - Rewire Works,03/04/2012,1233492,85.00,Lovell Respond,A038131,102.00,17.00
North West Leicestershire District Council,31UH,Housing Repairs,HRAHRM,HRA Housing Repairs & Maintenance,Construction - Rewire Works,03/04/2012,1233493,85.00,Lovell Respond,A038131,102.00,17.00
North West Leicestershire District Council,31UH,Housing Repairs,HRAHRM,HRA Housing Repairs & Maintenance,Construction - Rewire Works,03/04/2012,1233494,85.00,Lovell Respond,A038131,102.00,17.00
North West Leicestershire District Council,31UH,Housing Repairs,HRAHRM,HRA Housing Repairs & Maintenance,Construction - Rewire Works,03/04/2012,1233495,85.00,Lovell Respond,A038131,102.00,17.00
North West Leicestershire District Council,31UH,Housing Repairs,HRAHRM,HRA Housing Repairs & Maintenance,Construction - Rewire Works,03/04/2012,1233496,85.00,Lovell Respond,A038131,102.00,17.00
North West Leicestershire District Council,31UH,Housing Repairs,HRAHRM,HRA Housing Repairs & Maintenance,Construction - Rewire Works,03/04/2012,1233497,85.00,Lovell Respond,A038131,102.00,17.00
North West Leicestershire District Council,31UH,Housing Repairs,HRAHRM,HRA Housing Repairs & Maintenance,Construction - Rewire Works,03/04/2012,1233498,85.00,Lovell Respond,A038131,102.00,17.00
North West Leicestershire District Council,31UH,Housing Repairs,HRAHRM,HRA Housing Repairs & Maintenance,Construction - Rewire Works,03/04/2012,1233499,85.00,Lovell Respond,A038131,102.00,17.00
North West Leicestershire District Council,31UH,Housing Repairs,HRAHRM,HRA Housing Repairs & Maintenance,Construction - Rewire Works,03/04/2012,1233500,85.00,Lovell Respond,A038131,102.00,17.00
North West Leicestershire District Council,31UH,Housing Repairs,HRAHRM,HRA Housing Repairs & Maintenance,Construction - Rewire Works,03/04/2012,1233501,85.00,Lovell Respond,A038131,102.00,17.00
North West Leicestershire District Council,31UH,Housing Repairs,HRAHRM,HRA Housing Repairs & Maintenance,Construction - Rewire Works,03/04/2012,1233502,85.00,Lovell Respond,A038131,102.00,17.00
North West Leicestershire District Council,31UH,Housing Repairs,HRAHRM,HRA Housing Repairs & Maintenance,Construction - Rewire Works,03/04/2012,1233503,85.00,Lovell Respond,A038131,102.00,17.00
North West Leicestershire District Council,31UH,Housing Repairs,HRAHRM,HRA Housing Repairs & Maintenance,Construction - Rewire Works,03/04/2012,1233504,85.00,Lovell Respond,A038131,102.00,17.00
North West Leicestershire District Council,31UH,Housing Repairs,HRAHRM,HRA Housing Repairs & Maintenance,Construction - Rewire Works,03/04/2012,1233505,85.00,Lovell Respond,A038131,102.00,17.00
North West Leicestershire District Council,31UH,Housing Repairs,HRAHRM,HRA Housing Repairs & Maintenance,Construction - Rewire Works,03/04/2012,1233506,85.00,Lovell Respond,A038131,102.00,17.00
North West Leicestershire District Council,31UH,Housing Repairs,HRAHRM,HRA Housing Repairs & Maintenance,Construction - Rewire Works,03/04/2012,1233507,85.00,Lovell Respond,A038131,102.00,17.00
North West Leicestershire District Council,31UH,Housing Repairs,HRAHRM,HRA Housing Repairs & Maintenance,Construction - Rewire Works,03/04/2012,1233508,85.00,Lovell Respond,A038131,102.00,17.00
North West Leicestershire District Council,31UH,Housing Repairs,HRAHRM,HRA Housing Repairs & Maintenance,Construction - Rewire Works,03/04/2012,1233509,85.00,Lovell Respond,A038131,102.00,17.00
North West Leicestershire District Council,31UH,Housing Repairs,HRAHRM,HRA Housing Repairs & Maintenance,Construction - Rewire Works,03/04/2012,1233510,85.00,Lovell Respond,A038131,102.00,17.00
North West Leicestershire District Council,31UH,Housing Repairs,HRAHRM,HRA Housing Repairs & Maintenance,Construction - Rewire Works,03/04/2012,1233511,85.00,Lovell Respond,A038131,102.00,17.00
North West Leicestershire District Council,31UH,Housing Repairs,HRAHRM,HRA Housing Repairs & Maintenance,Gas & Electricity - Boiler replacement,03/04/2012,1233513,49.74,Lakers UK,A031787,59.69,9.95
North West Leicestershire District Council,31UH,Housing Repairs,HRAHRM,HRA Housing Repairs & Maintenance,Rent payments,03/04/2012,1233514,113.00,Leicestershire County Council,A000950,135.60,22.60
North West Leicestershire District Council,31UH,Housing Repairs,HRAHRM,HRA Housing Repairs & Maintenance,Rent payments,03/04/2012,1233515,102.00,Leicestershire County Council,A000950,122.40,20.40
North West Leicestershire District Council,31UH,Housing Repairs,HRAHRM,HRA Housing Repairs & Maintenance,Gas & Electricity - Boiler replacement,03/04/2012,1233516,5.72,Lakers UK,A031787,6.86,1.14
North West Leicestershire District Council,31UH,Housing Repairs,HRAHRM,HRA Housing Repairs & Maintenance,Gas & Electricity - Gas installation ,03/04/2012,1233517,693.33,British Gas Trading Limited,A026237,832.00,138.67
North West Leicestershire District Council,31UH,Housing Repairs,HRAHRM,HRA Housing Repairs & Maintenance,Gas & Electricity - Boiler replacement,03/04/2012,1233518,5.72,Lakers UK,A031787,6.86,1.14
North West Leicestershire District Council,31UH,Housing Repairs,HRAHRM,HRA Housing Repairs & Maintenance,Gas & Electricity - Boiler replacement,03/04/2012,1233519,383.42,Lakers UK,A031787,460.10,76.68
North West Leicestershire District Council,31UH,Housing Repairs,HRAHRM,HRA Housing Repairs & Maintenance,Gas & Electricity - Boiler replacement,03/04/2012,1233520,"1,406.59",Lakers UK,A031787,"1,687.91",281.32
North West Leicestershire District Council,31UH,Housing Repairs,HRAHRM,HRA Housing Repairs & Maintenance,Gas & Electricity - Boiler replacement,03/04/2012,1233521,111.04,Lakers UK,A031787,133.25,22.21
North West Leicestershire District Council,31UH,Housing Repairs,HRAHRM,HRA Housing Repairs & Maintenance,Gas & Electricity - Boiler replacement,03/04/2012,1233522,500.00,Lakers UK,A031787,600.00,100.00
North West Leicestershire District Council,31UH,Housing Repairs,HRAHRM,HRA Housing Repairs & Maintenance,Gas & Electricity - Boiler replacement,03/04/2012,1233523,63.74,Lakers UK,A031787,76.49,12.75
North West Leicestershire District Council,31UH,Housing Repairs,HRAHRM,HRA Housing Repairs & Maintenance,Gas & Electricity - Boiler replacement,03/04/2012,1233524,38.53,Lakers UK,A031787,46.24,7.71
North West Leicestershire District Council,31UH,Housing Repairs,HRAHRM,HRA Housing Repairs & Maintenance,Gas & Electricity - Boiler replacement,03/04/2012,1233525,38.53,Lakers UK,A031787,46.24,7.71
North West Leicestershire District Council,31UH,Housing Repairs,HRAHRM,HRA Housing Repairs & Maintenance,Gas & Electricity - Boiler replacement,03/04/2012,1233526,30.69,Lakers UK,A031787,36.83,6.14
North West Leicestershire District Council,31UH,Housing Repairs,HRAHRM,HRA Housing Repairs & Maintenance,Gas & Electricity - Boiler replacement,03/04/2012,1233527,47.11,Lakers UK,A031787,56.53,9.42
North West Leicestershire District Council,31UH,Housing Repairs,HRAHRM,HRA Housing Repairs & Maintenance,Gas & Electricity - Boiler replacement,03/04/2012,1233528,392.63,Lakers UK,A031787,471.16,78.53
North West Leicestershire District Council,31UH,Housing Repairs,HRAHRM,HRA Housing Repairs & Maintenance,Gas & Electricity - Boiler replacement,03/04/2012,1233529,161.48,Lakers UK,A031787,193.78,32.30
North West Leicestershire District Council,31UH,Housing Repairs,HRAHRM,HRA Housing Repairs & Maintenance,Gas & Electricity - Boiler replacement,03/04/2012,1233530,144.26,Lakers UK,A031787,173.11,28.85
North West Leicestershire District Council,31UH,Housing Repairs,HRAHRM,HRA Housing Repairs & Maintenance,Gas & Electricity - Boiler replacement,03/04/2012,1233531,123.03,Lakers UK,A031787,147.64,24.61
North West Leicestershire District Council,31UH,Housing Repairs,HRAHRM,HRA Housing Repairs & Maintenance,Gas & Electricity - Boiler replacement,03/04/2012,1233532,97.65,Lakers UK,A031787,117.18,19.53
North West Leicestershire District Council,31UH,Housing Repairs,HRAHRM,HRA Housing Repairs & Maintenance,Gas & Electricity - Boiler replacement,03/04/2012,1233533,446.97,Lakers UK,A031787,536.36,89.39
North West Leicestershire District Council,31UH,Housing Repairs,HRAHRM,HRA Housing Repairs & Maintenance,Gas & Electricity - Boiler replacement,03/04/2012,1233534,110.28,Lakers UK,A031787,132.34,22.06
North West Leicestershire District Council,31UH,Housing Repairs,HRAHRM,HRA Housing Repairs & Maintenance,Gas & Electricity - Boiler replacement,03/04/2012,1233535,137.90,Lakers UK,A031787,165.48,27.58
North West Leicestershire District Council,31UH,Housing Repairs,HRAHRM,HRA Housing Repairs & Maintenance,Gas & Electricity - Boiler replacement,03/04/2012,1233536,152.05,Lakers UK,A031787,182.46,30.41
North West Leicestershire District Council,31UH,Housing Repairs,HRAHRM,HRA Housing Repairs & Maintenance,Gas & Electricity - Boiler replacement,03/04/2012,1233537,70.10,Lakers UK,A031787,84.12,14.02
North West Leicestershire District Council,31UH,Housing Repairs,HRAHRM,HRA Housing Repairs & Maintenance,Gas & Electricity - Boiler replacement,03/04/2012,1233538,62.66,Lakers UK,A031787,75.19,12.53
North West Leicestershire District Council,31UH,Housing Repairs,HRAHRM,HRA Housing Repairs & Maintenance,Gas & Electricity - Boiler replacement,03/04/2012,1233539,62.66,Lakers UK,A031787,75.19,12.53
North West Leicestershire District Council,31UH,Housing Repairs,HRAHRM,HRA Housing Repairs & Maintenance,Gas & Electricity - Boiler replacement,03/04/2012,1233540,62.66,Lakers UK,A031787,75.19,12.53
North West Leicestershire District Council,31UH,Housing Repairs,HRAHRM,HRA Housing Repairs & Maintenance,Gas & Electricity - Boiler replacement,03/04/2012,1233541,125.32,Lakers UK,A031787,150.38,25.06
North West Leicestershire District Council,31UH,Housing Repairs,HRAHRM,HRA Housing Repairs & Maintenance,Gas & Electricity - Boiler replacement,03/04/2012,1233542,93.99,Lakers UK,A031787,112.79,18.80
North West Leicestershire District Council,31UH,Housing Repairs,HRAHRM,HRA Housing Repairs & Maintenance,Gas & Electricity - Boiler replacement,03/04/2012,1233543,9.38,Lakers UK,A031787,11.26,1.88
North West Leicestershire District Council,31UH,Housing Repairs,HRAHRM,HRA Housing Repairs & Maintenance,Gas & Electricity - Boiler replacement,03/04/2012,1233544,62.66,Lakers UK,A031787,75.19,12.53
North West Leicestershire District Council,31UH,Housing Repairs,HRAHRM,HRA Housing Repairs & Maintenance,Gas & Electricity - Boiler replacement,03/04/2012,1233545,93.99,Lakers UK,A031787,112.79,18.80
North West Leicestershire District Council,31UH,Housing Repairs,HRAHRM,HRA Housing Repairs & Maintenance,Gas & Electricity - Boiler replacement,03/04/2012,1233546,62.66,Lakers UK,A031787,75.19,12.53
North West Leicestershire District Council,31UH,Housing Repairs,HRAHRM,HRA Housing Repairs & Maintenance,Gas & Electricity - Boiler replacement,03/04/2012,1233547,18.24,Lakers UK,A031787,21.89,3.65
North West Leicestershire District Council,31UH,Housing Repairs,HRAHRM,HRA Housing Repairs & Maintenance,Gas & Electricity - Boiler replacement,03/04/2012,1233548,93.99,Lakers UK,A031787,112.79,18.80
North West Leicestershire District Council,31UH,Housing Repairs,HRAHRM,HRA Housing Repairs & Maintenance,Gas & Electricity - Boiler replacement,03/04/2012,1233549,93.99,Lakers UK,A031787,112.79,18.80
North West Leicestershire District Council,31UH,Housing Repairs,HRAHRM,HRA Housing Repairs & Maintenance,Gas & Electricity - Boiler replacement,03/04/2012,1233550,144.26,Lakers UK,A031787,173.11,28.85
North West Leicestershire District Council,31UH,Housing Repairs,HRAHRM,HRA Housing Repairs & Maintenance,Gas & Electricity - Boiler replacement,03/04/2012,1233551,125.32,Lakers UK,A031787,150.38,25.06
North West Leicestershire District Council,31UH,Housing Repairs,HRAHRM,HRA Housing Repairs & Maintenance,Gas & Electricity - Boiler replacement,03/04/2012,1233552,62.66,Lakers UK,A031787,75.19,12.53
North West Leicestershire District Council,31UH,Housing Repairs,HRAHRM,HRA Housing Repairs & Maintenance,Gas & Electricity - Boiler replacement,03/04/2012,1233553,43.82,Lakers UK,A031787,52.58,8.76
North West Leicestershire District Council,31UH,Housing Repairs,HRAHRM,HRA Housing Repairs & Maintenance,Gas & Electricity - Boiler replacement,03/04/2012,1233554,10.89,Lakers UK,A031787,13.07,2.18
North West Leicestershire District Council,31UH,Housing Repairs,HRAHRM,HRA Housing Repairs & Maintenance,Gas & Electricity - Boiler replacement,03/04/2012,1233555,93.99,Lakers UK,A031787,112.79,18.80
North West Leicestershire District Council,31UH,Housing Repairs,HRAHRM,HRA Housing Repairs & Maintenance,Gas & Electricity - Boiler replacement,03/04/2012,1233556,21.91,Lakers UK,A031787,26.29,4.38
North West Leicestershire District Council,31UH,Housing Repairs,HRAHRM,HRA Housing Repairs & Maintenance,Gas & Electricity - Boiler replacement,03/04/2012,1233557,31.29,Lakers UK,A031787,37.55,6.26
North West Leicestershire District Council,31UH,Housing Repairs,HRAHRM,HRA Housing Repairs & Maintenance,Gas & Electricity - Boiler replacement,03/04/2012,1233558,"2,516.88",Lakers UK,A031787,"3,020.26",503.38
North West Leicestershire District Council,31UH,Housing Repairs,HRAHRM,HRA Housing Repairs & Maintenance,Gas & Electricity - Boiler replacement,03/04/2012,1233559,"2,516.88",Lakers UK,A031787,"3,020.26",503.38
North West Leicestershire District Council,31UH,Housing Repairs,HRAHRM,HRA Housing Repairs & Maintenance,Gas & Electricity - Boiler replacement,03/04/2012,1233560,482.40,Lakers UK,A031787,578.88,96.48
North West Leicestershire District Council,31UH,Housing Repairs,HRAHRM,HRA Housing Repairs & Maintenance,Gas & Electricity - Boiler replacement,03/04/2012,1233561,71.28,Lakers UK,A031787,85.54,14.26
North West Leicestershire District Council,31UH,Housing Repairs,HRAHRM,HRA Housing Repairs & Maintenance,Gas & Electricity - Boiler replacement,03/04/2012,1233562,71.28,Lakers UK,A031787,85.54,14.26
North West Leicestershire District Council,31UH,Housing Repairs,HRAHRM,HRA Housing Repairs & Maintenance,Gas & Electricity - Boiler replacement,03/04/2012,1233563,71.28,Lakers UK,A031787,85.54,14.26
North West Leicestershire District Council,31UH,Housing Repairs,HRAHRM,HRA Housing Repairs & Maintenance,Gas & Electricity - Boiler replacement,03/04/2012,1233564,71.28,Lakers UK,A031787,85.54,14.26
North West Leicestershire District Council,31UH,Housing Repairs,HRAHRM,HRA Housing Repairs & Maintenance,Gas & Electricity - Boiler replacement,03/04/2012,1233565,771.63,Lakers UK,A031787,925.96,154.33
North West Leicestershire District Council,31UH,Housing Repairs,HRAHRM,HRA Housing Repairs & Maintenance,Gas & Electricity - Boiler replacement,03/04/2012,1233566,109.26,Lakers UK,A031787,131.11,21.85
North West Leicestershire District Council,31UH,Housing Repairs,HRAHRM,HRA Housing Repairs & Maintenance,Gas & Electricity - Boiler replacement,03/04/2012,1233567,63.73,Lakers UK,A031787,76.48,12.75
North West Leicestershire District Council,31UH,Housing Repairs,HRAHRM,HRA Housing Repairs & Maintenance,Gas & Electricity - Boiler replacement,03/04/2012,1233568,23.85,Lakers UK,A031787,28.62,4.77
North West Leicestershire District Council,31UH,Housing Repairs,HRAHRM,HRA Housing Repairs & Maintenance,Gas & Electricity - Boiler replacement,03/04/2012,1233569,93.99,Lakers UK,A031787,112.79,18.80
North West Leicestershire District Council,31UH,Housing Repairs,HRAHRM,HRA Housing Repairs & Maintenance,Rent payments,03/04/2012,1233570,92.00,Leicestershire County Council,A000950,110.40,18.40
North West Leicestershire District Council,31UH,Housing Repairs,HRAHRM,HRA Housing Repairs & Maintenance,Rent payments,03/04/2012,1233571,82.00,Leicestershire County Council,A000950,98.40,16.40
North West Leicestershire District Council,31UH,Housing Repairs,HRAHRM,HRA Housing Repairs & Maintenance,Rent payments,03/04/2012,1233572,82.00,Leicestershire County Council,A000950,98.40,16.40
North West Leicestershire District Council,31UH,Housing Repairs,HRAHRM,HRA Housing Repairs & Maintenance,Rent payments,03/04/2012,1233573,91.00,Leicestershire County Council,A000950,109.20,18.20
North West Leicestershire District Council,31UH,Housing Repairs,HRAHRM,HRA Housing Repairs & Maintenance,Rent payments,03/04/2012,1233574,64.00,Leicestershire County Council,A000950,76.80,12.80
North West Leicestershire District Council,31UH,Housing Repairs,HRAHRM,HRA Housing Repairs & Maintenance,Rent payments,03/04/2012,1233575,91.00,Leicestershire County Council,A000950,109.20,18.20
North West Leicestershire District Council,31UH,Housing Repairs,HRAHRM,HRA Housing Repairs & Maintenance,Rent payments,03/04/2012,1233576,91.00,Leicestershire County Council,A000950,109.20,18.20
North West Leicestershire District Council,31UH,Housing Repairs,HRAHRM,HRA Housing Repairs & Maintenance,Rent payments,03/04/2012,1233577,91.00,Leicestershire County Council,A000950,109.20,18.20
North West Leicestershire District Council,31UH,Housing Repairs,HRAHRM,HRA Housing Repairs & Maintenance,Rent payments,03/04/2012,1233578,91.00,Leicestershire County Council,A000950,109.20,18.20
North West Leicestershire District Council,31UH,Housing Repairs,HRAHRM,HRA Housing Repairs & Maintenance,Rent payments,03/04/2012,1233579,87.00,Leicestershire County Council,A000950,104.40,17.40
North West Leicestershire District Council,31UH,Housing Repairs,HRAHRM,HRA Housing Repairs & Maintenance,Rent payments,03/04/2012,1233580,60.00,Leicestershire County Council,A000950,72.00,12.00
North West Leicestershire District Council,31UH,Housing Repairs,HRAHRM,HRA Housing Repairs & Maintenance,Rent payments,03/04/2012,1233581,91.00,Leicestershire County Council,A000950,109.20,18.20
North West Leicestershire District Council,31UH,Housing Repairs,HRAHRM,HRA Housing Repairs & Maintenance,Rent payments,03/04/2012,1233582,91.00,Leicestershire County Council,A000950,109.20,18.20
North West Leicestershire District Council,31UH,Housing Repairs,HRAHRM,HRA Housing Repairs & Maintenance,Rent payments,03/04/2012,1233583,112.00,Leicestershire County Council,A000950,134.40,22.40
North West Leicestershire District Council,31UH,Housing Repairs,HRAHRM,HRA Housing Repairs & Maintenance,Rent payments,03/04/2012,1233584,62.00,Leicestershire County Council,A000950,74.40,12.40
North West Leicestershire District Council,31UH,Housing Repairs,HRAHRM,HRA Housing Repairs & Maintenance,Rent payments,03/04/2012,1233585,91.00,Leicestershire County Council,A000950,109.20,18.20
North West Leicestershire District Council,31UH,Housing Repairs,HRAHRM,HRA Housing Repairs & Maintenance,Rent payments,03/04/2012,1233586,327.00,Leicestershire County Council,A000950,392.40,65.40
North West Leicestershire District Council,31UH,Housing Repairs,HRAHRM,HRA Housing Repairs & Maintenance,Rent payments,03/04/2012,1233587,139.00,Leicestershire County Council,A000950,166.80,27.80
North West Leicestershire District Council,31UH,Housing Repairs,HRAHRM,HRA Housing Repairs & Maintenance,Rent payments,03/04/2012,1233588,91.00,Leicestershire County Council,A000950,109.20,18.20
North West Leicestershire District Council,31UH,Housing Repairs,HRAHRM,HRA Housing Repairs & Maintenance,Rent payments,03/04/2012,1233589,63.00,Leicestershire County Council,A000950,75.60,12.60
North West Leicestershire District Council,31UH,Housing Repairs,HRAHRM,HRA Housing Repairs & Maintenance,Rent payments,03/04/2012,1233590,91.00,Leicestershire County Council,A000950,109.20,18.20
North West Leicestershire District Council,31UH,Housing Repairs,HRAHRM,HRA Housing Repairs & Maintenance,Rent payments,03/04/2012,1233591,91.00,Leicestershire County Council,A000950,109.20,18.20
North West Leicestershire District Council,31UH,Housing Repairs,HRAHRM,HRA Housing Repairs & Maintenance,Rent payments,03/04/2012,1233592,91.00,Leicestershire County Council,A000950,109.20,18.20
North West Leicestershire District Council,31UH,Housing Repairs,HRAHRM,HRA Housing Repairs & Maintenance,Rent payments,03/04/2012,1233593,91.00,Leicestershire County Council,A000950,109.20,18.20
North West Leicestershire District Council,31UH,Housing Repairs,HRAHRM,HRA Housing Repairs & Maintenance,Rent payments,03/04/2012,1233594,91.00,Leicestershire County Council,A000950,109.20,18.20
North West Leicestershire District Council,31UH,Housing Repairs,HRAHRM,HRA Housing Repairs & Maintenance,Gas & Electricity - Gas installation ,03/04/2012,1233595,693.33,British Gas Trading Limited,A026237,832.00,138.67
North West Leicestershire District Council,31UH,Housing Repairs,HRAHRM,HRA Housing Repairs & Maintenance,Gas & Electricity - Boiler replacement,03/04/2012,1233596,21.47,Lakers UK,A031787,25.76,4.29
North West Leicestershire District Council,31UH,Housing Repairs,HRAHRM,HRA Housing Repairs & Maintenance,Gas & Electricity - Boiler replacement,03/04/2012,1233597,57.14,Lakers UK,A031787,68.57,11.43
North West Leicestershire District Council,31UH,Housing Repairs,HRAHRM,HRA Housing Repairs & Maintenance,Gas & Electricity - Boiler replacement,03/04/2012,1233598,11.80,Lakers UK,A031787,14.16,2.36
North West Leicestershire District Council,31UH,Housing Repairs,HRAHRM,HRA Housing Repairs & Maintenance,Gas & Electricity - Boiler replacement,03/04/2012,1233599,63.73,Lakers UK,A031787,76.48,12.75
North West Leicestershire District Council,31UH,Housing Repairs,HRAHRM,HRA Housing Repairs & Maintenance,Gas & Electricity - Boiler replacement,03/04/2012,1233600,47.50,Lakers UK,A031787,57.00,9.50
North West Leicestershire District Council,31UH,Housing Repairs,HRAHRM,HRA Housing Repairs & Maintenance,Gas & Electricity - Boiler replacement,03/04/2012,1233601,125.32,Lakers UK,A031787,150.38,25.06
North West Leicestershire District Council,31UH,Housing Repairs,HRAHRM,HRA Housing Repairs & Maintenance,Gas & Electricity - Boiler replacement,03/04/2012,1233602,19.22,Lakers UK,A031787,23.06,3.84
North West Leicestershire District Council,31UH,Housing Repairs,HRAHRM,HRA Housing Repairs & Maintenance,Gas & Electricity - Boiler replacement,03/04/2012,1233603,125.32,Lakers UK,A031787,150.38,25.06
North West Leicestershire District Council,31UH,Housing Repairs,HRAHRM,HRA Housing Repairs & Maintenance,Gas & Electricity - Boiler replacement,03/04/2012,1233604,33.28,Lakers UK,A031787,39.94,6.66
North West Leicestershire District Council,31UH,Housing Repairs,HRAHRM,HRA Housing Repairs & Maintenance,Gas & Electricity - Boiler replacement,03/04/2012,1233605,33.28,Lakers UK,A031787,39.94,6.66
North West Leicestershire District Council,31UH,Housing Repairs,HRAHRM,HRA Housing Repairs & Maintenance,Gas & Electricity - Boiler replacement,03/04/2012,1233606,31.17,Lakers UK,A031787,37.40,6.23
North West Leicestershire District Council,31UH,Housing Repairs,HRAHRM,HRA Housing Repairs & Maintenance,Gas & Electricity - Boiler replacement,03/04/2012,1233607,38.36,Lakers UK,A031787,46.03,7.67
North West Leicestershire District Council,31UH,Housing Repairs,HRAHRM,HRA Housing Repairs & Maintenance,Gas & Electricity - Boiler replacement,03/04/2012,1233608,47.51,Lakers UK,A031787,57.01,9.50
North West Leicestershire District Council,31UH,Housing Repairs,HRAHRM,HRA Housing Repairs & Maintenance,Gas & Electricity - Boiler replacement,03/04/2012,1233609,"1,834.44",Lakers UK,A031787,"2,201.33",366.89
North West Leicestershire District Council,31UH,Housing Repairs,HRAHRM,HRA Housing Repairs & Maintenance,Gas & Electricity - Boiler replacement,03/04/2012,1233610,"1,451.53",Lakers UK,A031787,"1,741.84",290.31
North West Leicestershire District Council,31UH,Housing Repairs,HRAHRM,HRA Housing Repairs & Maintenance,Gas & Electricity - Boiler replacement,03/04/2012,1233611,"1,309.01",Lakers UK,A031787,"1,570.81",261.80
North West Leicestershire District Council,31UH,Housing Repairs,HRAHRM,HRA Housing Repairs & Maintenance,Gas & Electricity - Boiler replacement,03/04/2012,1233612,"2,724.15",Lakers UK,A031787,"3,268.98",544.83
North West Leicestershire District Council,31UH,Housing Repairs,HRAHRM,HRA Housing Repairs & Maintenance,Gas & Electricity - Boiler replacement,03/04/2012,1233613,"2,168.22",Lakers UK,A031787,"2,601.86",433.64
North West Leicestershire District Council,31UH,Housing Repairs,HRAHRM,HRA Housing Repairs & Maintenance,Gas & Electricity - Boiler replacement,03/04/2012,1233614,773.68,Lakers UK,A031787,928.42,154.74
North West Leicestershire District Council,31UH,Housing Repairs,HRAHRM,HRA Housing Repairs & Maintenance,Gas & Electricity - Boiler replacement,03/04/2012,1233615,24.65,Lakers UK,A031787,29.58,4.93
North West Leicestershire District Council,31UH,Housing Repairs,HRAHRM,HRA Housing Repairs & Maintenance,Gas & Electricity - Boiler replacement,03/04/2012,1233616,341.05,Lakers UK,A031787,409.26,68.21
North West Leicestershire District Council,31UH,Housing Repairs,HRAHRM,HRA Housing Repairs & Maintenance,Gas & Electricity - Boiler replacement,03/04/2012,1233617,109.14,Lakers UK,A031787,130.97,21.83
North West Leicestershire District Council,31UH,Housing Repairs,HRAHRM,HRA Housing Repairs & Maintenance,Gas & Electricity - Boiler replacement,03/04/2012,1233618,80.08,Lakers UK,A031787,96.10,16.02
North West Leicestershire District Council,31UH,Housing Repairs,HRAHRM,HRA Housing Repairs & Maintenance,Gas & Electricity - Boiler replacement,03/04/2012,1233619,593.94,Lakers UK,A031787,712.73,118.79
North West Leicestershire District Council,31UH,Housing Repairs,HRAHRM,HRA Housing Repairs & Maintenance,Gas & Electricity - Boiler replacement,03/04/2012,1233620,167.15,Lakers UK,A031787,200.58,33.43
North West Leicestershire District Council,31UH,Housing Repairs,HRAHRM,HRA Housing Repairs & Maintenance,Gas & Electricity - Boiler replacement,03/04/2012,1233621,25.39,Lakers UK,A031787,30.47,5.08
North West Leicestershire District Council,31UH,Housing Repairs,HRAHRM,HRA Housing Repairs & Maintenance,Gas & Electricity - Boiler replacement,03/04/2012,1233622,117.12,Lakers UK,A031787,140.54,23.42
North West Leicestershire District Council,31UH,Housing Repairs,HRAHRM,HRA Housing Repairs & Maintenance,Gas & Electricity - Boiler replacement,03/04/2012,1233623,38.71,Lakers UK,A031787,46.45,7.74
North West Leicestershire District Council,31UH,Housing Repairs,HRAHRM,HRA Housing Repairs & Maintenance,Gas & Electricity - Boiler replacement,03/04/2012,1233624,125.32,Lakers UK,A031787,150.38,25.06
North West Leicestershire District Council,31UH,Housing Repairs,HRAHRM,HRA Housing Repairs & Maintenance,Gas & Electricity - Boiler replacement,03/04/2012,1233625,125.32,Lakers UK,A031787,150.38,25.06
North West Leicestershire District Council,31UH,Housing Repairs,HRAHRM,HRA Housing Repairs & Maintenance,Gas & Electricity - Boiler replacement,03/04/2012,1233626,67.23,Lakers UK,A031787,80.68,13.45
North West Leicestershire District Council,31UH,Housing Repairs,HRAHRM,HRA Housing Repairs & Maintenance,Gas & Electricity - Boiler replacement,03/04/2012,1233627,27.92,Lakers UK,A031787,33.50,5.58
North West Leicestershire District Council,31UH,Housing Repairs,HRAHRM,HRA Housing Repairs & Maintenance,Gas & Electricity - Boiler replacement,03/04/2012,1233628,318.94,Lakers UK,A031787,382.73,63.79
North West Leicestershire District Council,31UH,Housing Repairs,HRAHRM,HRA Housing Repairs & Maintenance,Gas & Electricity - Boiler replacement,03/04/2012,1233629,125.32,Lakers UK,A031787,150.38,25.06
North West Leicestershire District Council,31UH,Housing Repairs,HRAHRM,HRA Housing Repairs & Maintenance,Gas & Electricity - Boiler replacement,03/04/2012,1233630,213.00,Lakers UK,A031787,255.60,42.60
North West Leicestershire District Council,31UH,Housing Repairs,HRAHRM,HRA Housing Repairs & Maintenance,Gas & Electricity - Boiler replacement,03/04/2012,1233631,62.66,Lakers UK,A031787,75.19,12.53
North West Leicestershire District Council,31UH,Housing Repairs,HRAHRM,HRA Housing Repairs & Maintenance,Gas & Electricity - Boiler replacement,03/04/2012,1233632,175.59,Lakers UK,A031787,210.71,35.12
North West Leicestershire District Council,31UH,Housing Repairs,HRAHRM,HRA Housing Repairs & Maintenance,Gas & Electricity - Boiler replacement,03/04/2012,1233633,156.65,Lakers UK,A031787,187.98,31.33
North West Leicestershire District Council,31UH,Housing Repairs,HRAHRM,HRA Housing Repairs & Maintenance,Gas & Electricity - Boiler replacement,03/04/2012,1233634,206.92,Lakers UK,A031787,248.30,41.38
North West Leicestershire District Council,31UH,Housing Repairs,HRAHRM,HRA Housing Repairs & Maintenance,Gas & Electricity - Boiler replacement,03/04/2012,1233635,93.99,Lakers UK,A031787,112.79,18.80
North West Leicestershire District Council,31UH,Housing Repairs,HRAHRM,HRA Housing Repairs & Maintenance,Gas & Electricity - Boiler replacement,03/04/2012,1233636,206.92,Lakers UK,A031787,248.30,41.38
North West Leicestershire District Council,31UH,Housing Repairs,HRAHRM,HRA Housing Repairs & Maintenance,Gas & Electricity - Boiler replacement,03/04/2012,1233637,54.77,Lakers UK,A031787,65.72,10.95
North West Leicestershire District Council,31UH,Housing Repairs,HRAHRM,HRA Housing Repairs & Maintenance,Gas & Electricity - Boiler replacement,03/04/2012,1233638,93.99,Lakers UK,A031787,112.79,18.80
North West Leicestershire District Council,31UH,Housing Repairs,HRAHRM,HRA Housing Repairs & Maintenance,Gas & Electricity - Boiler replacement,03/04/2012,1233639,82.93,Lakers UK,A031787,99.52,16.59
North West Leicestershire District Council,31UH,Housing Repairs,HRAHRM,HRA Housing Repairs & Maintenance,Gas & Electricity - Boiler replacement,03/04/2012,1233640,229.67,Lakers UK,A031787,275.60,45.93
North West Leicestershire District Council,31UH,Housing Repairs,HRAHRM,HRA Housing Repairs & Maintenance,Gas & Electricity - Boiler replacement,03/04/2012,1233641,310.43,Lakers UK,A031787,372.52,62.09
North West Leicestershire District Council,31UH,Housing Repairs,HRAHRM,HRA Housing Repairs & Maintenance,Gas & Electricity - Boiler replacement,03/04/2012,1233642,54.56,Lakers UK,A031787,65.47,10.91
North West Leicestershire District Council,31UH,Housing Repairs,HRAHRM,HRA Housing Repairs & Maintenance,Gas & Electricity - Boiler replacement,03/04/2012,1233643,93.99,Lakers UK,A031787,112.79,18.80
North West Leicestershire District Council,31UH,Housing Repairs,HRAHRM,HRA Housing Repairs & Maintenance,Gas & Electricity - Boiler replacement,03/04/2012,1233644,20.19,Lakers UK,A031787,24.23,4.04
North West Leicestershire District Council,31UH,Housing Repairs,HRAHRM,HRA Housing Repairs & Maintenance,Gas & Electricity - Boiler replacement,03/04/2012,1233645,72.95,Lakers UK,A031787,87.54,14.59
North West Leicestershire District Council,31UH,Housing Repairs,HRAHRM,HRA Housing Repairs & Maintenance,Gas & Electricity - Boiler replacement,03/04/2012,1233646,72.95,Lakers UK,A031787,87.54,14.59
North West Leicestershire District Council,31UH,Housing Repairs,HRAHRM,HRA Housing Repairs & Maintenance,Gas & Electricity - Boiler replacement,03/04/2012,1233647,310.43,Lakers UK,A031787,372.52,62.09
North West Leicestershire District Council,31UH,Housing Repairs,HRAHRM,HRA Housing Repairs & Maintenance,Gas & Electricity - Boiler replacement,03/04/2012,1233648,31.17,Lakers UK,A031787,37.40,6.23
North West Leicestershire District Council,31UH,Housing Repairs,HRAHRM,HRA Housing Repairs & Maintenance,Gas & Electricity - Boiler replacement,03/04/2012,1233649,52.64,Lakers UK,A031787,63.17,10.53
North West Leicestershire District Council,31UH,Housing Repairs,HRAHRM,HRA Housing Repairs & Maintenance,Gas & Electricity - Boiler replacement,03/04/2012,1233650,35.46,Lakers UK,A031787,42.55,7.09
North West Leicestershire District Council,31UH,Housing Repairs,HRAHRM,HRA Housing Repairs & Maintenance,Gas & Electricity - Boiler replacement,03/04/2012,1233651,58.35,Lakers UK,A031787,70.02,11.67
North West Leicestershire District Council,31UH,Housing Repairs,HRAHRM,HRA Housing Repairs & Maintenance,Gas & Electricity - Boiler replacement,03/04/2012,1233652,54.77,Lakers UK,A031787,65.72,10.95
North West Leicestershire District Council,31UH,Housing Repairs,HRAHRM,HRA Housing Repairs & Maintenance,Gas & Electricity - Boiler replacement,03/04/2012,1233653,11.80,Lakers UK,A031787,14.16,2.36
North West Leicestershire District Council,31UH,Housing Repairs,HRAHRM,HRA Housing Repairs & Maintenance,Gas & Electricity - Boiler replacement,03/04/2012,1233654,42.01,Lakers UK,A031787,50.41,8.40
North West Leicestershire District Council,31UH,Housing Repairs,HRAHRM,HRA Housing Repairs & Maintenance,Gas & Electricity - Boiler replacement,03/04/2012,1233655,10.46,Lakers UK,A031787,12.55,2.09
North West Leicestershire District Council,31UH,Housing Repairs,HRAHRM,HRA Housing Repairs & Maintenance,Gas & Electricity - Boiler replacement,03/04/2012,1233656,56.44,Lakers UK,A031787,67.73,11.29
North West Leicestershire District Council,31UH,Housing Repairs,HRAHRM,HRA Housing Repairs & Maintenance,Gas & Electricity - Boiler replacement,03/04/2012,1233657,119.36,Lakers UK,A031787,143.23,23.87
North West Leicestershire District Council,31UH,Housing Repairs,HRAHRM,HRA Housing Repairs & Maintenance,Gas & Electricity - Boiler replacement,03/04/2012,1233658,71.28,Lakers UK,A031787,85.54,14.26
North West Leicestershire District Council,31UH,Housing Repairs,HRAHRM,HRA Housing Repairs & Maintenance,Gas & Electricity - Boiler replacement,03/04/2012,1233659,414.72,Lakers UK,A031787,497.66,82.94
North West Leicestershire District Council,31UH,Housing Repairs,HRAHRM,HRA Housing Repairs & Maintenance,Gas & Electricity - Boiler replacement,03/04/2012,1233660,163.14,Lakers UK,A031787,195.77,32.63
North West Leicestershire District Council,31UH,Housing Repairs,HRAHRM,HRA Housing Repairs & Maintenance,Gas & Electricity - Boiler replacement,03/04/2012,1233661,71.28,Lakers UK,A031787,85.54,14.26
North West Leicestershire District Council,31UH,Housing Repairs,HRAHRM,HRA Housing Repairs & Maintenance,Gas & Electricity - Boiler replacement,03/04/2012,1233662,523.18,Lakers UK,A031787,627.82,104.64
North West Leicestershire District Council,31UH,Housing Repairs,HRAHRM,HRA Housing Repairs & Maintenance,Gas & Electricity - Boiler replacement,03/04/2012,1233663,34.14,Lakers UK,A031787,40.97,6.83
North West Leicestershire District Council,31UH,Housing Repairs,HRAHRM,HRA Housing Repairs & Maintenance,Gas & Electricity - Boiler replacement,03/04/2012,1233664,31.67,Lakers UK,A031787,38.00,6.33
North West Leicestershire District Council,31UH,Housing Repairs,HRAHRM,HRA Housing Repairs & Maintenance,Gas & Electricity - Boiler replacement,03/04/2012,1233665,"2,174.29",Lakers UK,A031787,"2,609.15",434.86
North West Leicestershire District Council,31UH,Housing Repairs,HRAHRM,HRA Housing Repairs & Maintenance,Gas & Electricity - Boiler replacement,03/04/2012,1233666,"1,494.71",Lakers UK,A031787,"1,793.65",298.94
North West Leicestershire District Council,31UH,Housing Repairs,HRAHRM,HRA Housing Repairs & Maintenance,Gas & Electricity - Boiler replacement,03/04/2012,1233667,"2,325.69",Lakers UK,A031787,"2,790.83",465.14
North West Leicestershire District Council,31UH,Housing Repairs,HRAHRM,HRA Housing Repairs & Maintenance,Gas & Electricity - Boiler replacement,03/04/2012,1233668,"2,400.00",Lakers UK,A031787,"2,880.00",480.00
North West Leicestershire District Council,31UH,Housing Repairs,HRAHRM,HRA Housing Repairs & Maintenance,Gas & Electricity - Boiler replacement,03/04/2012,1233669,"3,371.50",Lakers UK,A031787,"4,045.80",674.30
North West Leicestershire District Council,31UH,Housing Repairs,HRAHRM,HRA Housing Repairs & Maintenance,Building - General Maintenance works - Minor framework,03/04/2012,1233670,"3,790.00",Alf Wright Construction Limited,A036239,"4,548.00",758.00
North West Leicestershire District Council,31UH,Housing Repairs,HRAHRM,HRA Housing Repairs & Maintenance,Housing Maintenance - Supply and Fit of Composite Doors and UPVC Frames,03/04/2012,1233671,397.08,I G Doors Limited,A038041,476.50,79.42
North West Leicestershire District Council,31UH,Housing Repairs,HRAHRM,HRA Housing Repairs & Maintenance,Housing Maintenance - Supply and Fit of Composite Doors and UPVC Frames,03/04/2012,1233672,397.08,I G Doors Limited,A038041,476.50,79.42
North West Leicestershire District Council,31UH,Housing Repairs,HRAHRM,HRA Housing Repairs & Maintenance,Housing Maintenance - Supply and Fit of Composite Doors and UPVC Frames,03/04/2012,1233673,397.08,I G Doors Limited,A038041,476.50,79.42
North West Leicestershire District Council,31UH,Housing Repairs,HRAHRM,HRA Housing Repairs & Maintenance,Housing Maintenance - Supply and Fit of Composite Doors and UPVC Frames,03/04/2012,1233674,397.08,I G Doors Limited,A038041,476.50,79.42
North West Leicestershire District Council,31UH,Housing Repairs,HRAHRM,HRA Housing Repairs & Maintenance,Housing Maintenance - Supply and Fit of Composite Doors and UPVC Frames,03/04/2012,1233675,397.08,I G Doors Limited,A038041,476.50,79.42
North West Leicestershire District Council,31UH,Housing Repairs,HRAHRM,HRA Housing Repairs & Maintenance,Housing Maintenance - Supply and Fit of Composite Doors and UPVC Frames,03/04/2012,1233676,397.08,I G Doors Limited,A038041,476.50,79.42
North West Leicestershire District Council,31UH,Housing Repairs,HRAHRM,HRA Housing Repairs & Maintenance,Housing Maintenance - Supply and Fit of Composite Doors and UPVC Frames,03/04/2012,1233677,397.08,I G Doors Limited,A038041,476.50,79.42
North West Leicestershire District Council,31UH,Housing Repairs,HRAHRM,HRA Housing Repairs & Maintenance,Housing Maintenance - Supply and Fit of Composite Doors and UPVC Frames,03/04/2012,1233678,397.08,I G Doors Limited,A038041,476.50,79.42
North West Leicestershire District Council,31UH,Housing Repairs,HRAHRM,HRA Housing Repairs & Maintenance,Housing Maintenance - Supply and Fit of Composite Doors and UPVC Frames,03/04/2012,1233679,397.08,I G Doors Limited,A038041,476.50,79.42
North West Leicestershire District Council,31UH,Housing Repairs,HRAHRM,HRA Housing Repairs & Maintenance,Housing Maintenance - Supply and Fit of Composite Doors and UPVC Frames,03/04/2012,1233680,539.91,I G Doors Limited,A038041,647.89,107.98
North West Leicestershire District Council,31UH,Housing Repairs,HRAHRM,HRA Housing Repairs & Maintenance,Rent payments,03/04/2012,1233682,92.00,Leicestershire County Council,A000950,105.80,13.80
North West Leicestershire District Council,31UH,Housing Repairs,HRAHRM,HRA Housing Repairs & Maintenance,Rent payments,03/04/2012,1233683,101.00,Leicestershire County Council,A000950,116.15,15.15
North West Leicestershire District Council,31UH,Housing Repairs,HRAHRM,HRA Housing Repairs & Maintenance,Housing Maintenance - Replacement Windows and Doors,11/04/2012,1233970,322.19,SBP Limited (Trading as Plastal & Permadoor),A036741,386.62,64.43
North West Leicestershire District Council,31UH,Housing Repairs,HRAHRM,HRA Housing Repairs & Maintenance,Housing Maintenance - Replacement Windows and Doors,11/04/2012,1233971,322.19,SBP Limited (Trading as Plastal & Permadoor),A036741,386.62,64.43
North West Leicestershire District Council,31UH,Housing Repairs,HRAHRM,HRA Housing Repairs & Maintenance,Housing Maintenance - Replacement Windows and Doors,11/04/2012,1233972,256.26,SBP Limited (Trading as Plastal & Permadoor),A036741,307.51,51.25
North West Leicestershire District Council,31UH,Housing Repairs,HRAHRM,HRA Housing Repairs & Maintenance,Housing Maintenance - Replacement Windows and Doors,11/04/2012,1233973,322.19,SBP Limited (Trading as Plastal & Permadoor),A036741,386.62,64.43
North West Leicestershire District Council,31UH,Housing Repairs,HRAHRM,HRA Housing Repairs & Maintenance,Housing Maintenance - Replacement Windows and Doors,11/04/2012,1233974,322.19,SBP Limited (Trading as Plastal & Permadoor),A036741,386.62,64.43
North West Leicestershire District Council,31UH,Housing Repairs,HRAHRM,HRA Housing Repairs & Maintenance,Housing Maintenance - Replacement Windows and Doors,11/04/2012,1233975,768.77,SBP Limited (Trading as Plastal & Permadoor),A036741,922.52,153.75
North West Leicestershire District Council,31UH,Housing Repairs,HRAHRM,HRA Housing Repairs & Maintenance,Housing Maintenance - Replacement Windows and Doors,11/04/2012,1233976,322.19,SBP Limited (Trading as Plastal & Permadoor),A036741,386.62,64.43
North West Leicestershire District Council,31UH,Housing Repairs,HRAHRM,HRA Housing Repairs & Maintenance,Housing Maintenance - Replacement Windows and Doors,11/04/2012,1233977,340.41,SBP Limited (Trading as Plastal & Permadoor),A036741,408.49,68.08
North West Leicestershire District Council,31UH,Housing Repairs,HRAHRM,HRA Housing Repairs & Maintenance,Housing Maintenance - Replacement Windows and Doors,11/04/2012,1233978,340.41,SBP Limited (Trading as Plastal & Permadoor),A036741,408.49,68.08
North West Leicestershire District Council,31UH,Housing Repairs,HRAHRM,HRA Housing Repairs & Maintenance,Housing Maintenance - Replacement Windows and Doors,11/04/2012,1233979,322.19,SBP Limited (Trading as Plastal & Permadoor),A036741,386.62,64.43
North West Leicestershire District Council,31UH,Housing Repairs,HRAHRM,HRA Housing Repairs & Maintenance,Housing Maintenance - Replacement Windows and Doors,11/04/2012,1233980,340.41,SBP Limited (Trading as Plastal & Permadoor),A036741,408.49,68.08
North West Leicestershire District Council,31UH,Housing Repairs,HRAHRM,HRA Housing Repairs & Maintenance,Housing Maintenance - Replacement Windows and Doors,11/04/2012,1233981,360.35,SBP Limited (Trading as Plastal & Permadoor),A036741,432.42,72.07
North West Leicestershire District Council,31UH,Housing Repairs,HRAHRM,HRA Housing Repairs & Maintenance,Housing Maintenance - Replacement Windows and Doors,11/04/2012,1233982,392.22,SBP Limited (Trading as Plastal & Permadoor),A036741,470.66,78.44
North West Leicestershire District Council,31UH,Housing Repairs,HRAHRM,HRA Housing Repairs & Maintenance,Housing Maintenance - Replacement Windows and Doors,11/04/2012,1233983,322.19,SBP Limited (Trading as Plastal & Permadoor),A036741,386.62,64.43
North West Leicestershire District Council,31UH,Housing Repairs,HRAHRM,HRA Housing Repairs & Maintenance,Housing Maintenance - Replacement Windows and Doors,11/04/2012,1233984,322.19,SBP Limited (Trading as Plastal & Permadoor),A036741,386.62,64.43
